Cogmind - Beta 12 X1 @@@ ROGUE MODE // 2022.07.13 @ 18:04:08 Player: Terminus Result: Escaped! Performance ------------- Evolutions (9) 4500 Regions Visited (36) 7200 Robots Destroyed (612) 3060 Value Destroyed (35423) 35423 Prototype IDs (230) 4600 Alien Tech Used (11) 2200 Bonus (38966) 38966 TOTAL SCORE: 95949 Bonus ------- Triggered High Security 500 High Alert Combat Kills 10516 Follower Combat Kills 3634 Entered Garrisons 800 Used RIF Installer 2500 Network Hubs Disabled 200 Met Data Miner 300 Used Data Conduit 3000 Built Enhanced Grunts 300 Met R17 at Cetus 500 Found Hidden Lab 3000 Decrypted A0 Command 3000 Met R17 at Research 2000 Scanned by Researcher 500 Pursued by Intercept 3000 Destroyed MAIN.C Guards 500 Met MAIN.C 5000 Win 3000 Friendly Fire -3284 Cogmind --------- Core Integrity 251/1600 Matter 235/300 Energy 1420/1440 System Corruption 0% Temperature Warm (178) Movement Treading (135) Location To Epsilon Eridani Parts ------- > --- POWER (3) -------- Zero-point Reactor Vortex Chain Reactor > --- PROPULSION (6) --- Experimental Biometal Heavy Treads Experimental Biometal Heavy Treads Experimental Biometal Medium Treads > --- UTILITY (14) ----- Advanced Cooling System Medium Storage Unit Energy Well Advanced Quantum Shading Machine Experimental Targeting Computer Experimental Targeting Computer Advanced Target Analyzer Core Analyzer Experimental Core Analyzer Experimental ECM Suite Spacefold Activator Microwarp Drive > --- WEAPON (3) ------- Enhanced Nova Cannon Enhanced Nova Cannon Enhanced Nova Cannon > --- INVENTORY (10) --- Light Quantum Reactor Experimental Biometal Leg Myomer Exoskeleton Graphene Brace Cooled Nova Cannon Hypervelocity Multirail Enhanced Gamma Bomb Array Guided Remote Datajack Peak State ------------ > --- POWER ------------ Reinforced Quantum Reactor Vortex Chain Reactor > --- PROPULSION ------- Myomer Exoskeleton Myomer Exoskeleton > --- UTILITY ---------- Experimental Cooling System Experimental Cooling System Cargo Storage Unit Experimental Targeting Computer Core Analyzer Quantum Capacitor Heavy Regenerative Plating Improved Hacking Suite Spacefold Activator Microwarp Drive > --- WEAPON ----------- Cooled Nova Cannon Perforator > --- INVENTORY -------- Reinforced Antimatter Reactor Light Quantum Reactor Improved Quantum Reactor Biometal Heavy Treads Enhanced Armored Heavy Treads High-density Centrium Heavy Treads Advanced Energy Well Advanced Targeting Computer Experimental Targeting Computer Experimental Phase Shifter Graphene Brace Point Defense System Improved Hacking Suite Advanced Hacking Suite Warp Gun Sigix Sheargun Sigix Sheargun Warp Cannon Gamma Bomb Array Enhanced Gamma Bomb Array Guided Remote Datajack [Rating: 271] Favorites ----------- Power Antimatter Reactor Engine F-cell Engine Power Core Micro Fission Core Reactor Antimatter Reactor Propulsion Improved Heavy Treads Treads Improved Heavy Treads Leg Myomer Exoskeleton Wheel Armored Wheel Utility Cargo Storage Unit Device Sensor Drone Bay Storage Cargo Storage Unit Processor Advanced Targeting Computer Hackware Hacking Suite Protection Medium Regenerative Plating Artifact Microwarp Drive Weapon Improved Heavy Laser Energy Gun Improved Heavy Laser Energy Cannon Enhanced Nova Cannon Ballistic Gun Assault Rifle Ballistic Cannon Perforator Launcher Mini Grenade Launcher Special Weapon Improved Plasma Cutter Slashing Weapon Axe Piercing Weapon Kinetic Spear Build | -11 -10 -10 -9 -9 -9 -8 -8 -8 -8 -7 -7 -7 -7 -7 -7 -6 -6 -6 -6 -6 -5 -5 -5 -5 -5 -5 -4 -4 -4 -3 -3 -3 -2 -2 -1 -1 ------- Run | Scr Mat Min Mat Sto Gar Mat Gar Mat Gar Fac Gar Fac Low Low Zio Pro Fac Low Low Dat Pro Fac Ext Cet Arc Hub Fac Arm Lab Res Qua Sec Res Tes Acc Com Slots Evolved 18 | . . . 2 . . 2 . . . 2 . . . . . . 2 . . . . 2 . . . . 2 . . 2 . . 2 . 2 . Power 2 | . . . . . . . . . . . . . . . . . . . . . . 1 . . . . . . . . . . . . 1 . Propulsion 3 | . . . 1 . . 1 . . . . . . . . . . . . . . . . . . . . . . . 1 . . . . . . Utility 12 | . . . 1 . . 1 . . . 2 . . . . . . 1 . . . . 1 . . . . 2 . . 1 . . 2 . 1 . Weapon 1 | . . . . . . . . . . . . . . . . . 1 . . . . . . . . . . . . . . . . . . . Parts Attached 543 | 6 8 4 19 17 4 15 23 3 7 5 26 24 11 5 9 4 14 . 6 17 9 4 4 10 12 8 27 75 17 15 28 35 7 27 3 35 Power 40 | 1 . 1 1 2 . . 2 . . . 2 . 1 . . . . . . 2 . 1 . 1 1 . 3 6 1 1 5 1 . 1 1 6 Engine 11 | 1 . 1 1 2 . . 2 . . . 2 . 1 . . . . . . 1 . . . . . . . . . . . . . . . . Core 2 | . . . . . . . . . . . . . . . . . . . . . . . . . . . . 2 . . . . . . . . Reactor 27 | . . . . . . . . . . . . . . . . . . . . 1 . 1 . 1 1 . 3 4 1 1 5 1 . 1 1 6 Propulsion 82 | 2 1 . 6 9 2 4 5 1 1 . 4 1 . 1 . 2 4 . . 4 1 . 2 1 1 3 2 13 . 1 3 . . 5 . 3 Treads 53 | 2 1 . 3 7 1 2 4 1 . . 2 1 . 1 . 2 . . . 1 1 . . 1 . . 1 12 . 1 3 . . 3 . 3 Leg 2 | . . . . . . . . . . . . . . . . . . . . . . . . . . . . . . . . . . 2 . . Wheel 27 | . . . 3 2 1 2 1 . 1 . 2 . . . . . 4 . . 3 . . 2 . 1 3 1 1 . . . . . . . . Hover . | . . . . . . . . . . . . . . . . . . . . . . . . . . . . . . . . . . . . . Flight . | . . . . . . . . . . . . . . . . . . . . . . . . . . . . . . . . . . . . . Utility 259 | 1 4 3 3 3 . 7 4 1 1 5 10 15 2 2 7 2 6 . 5 8 5 1 2 5 5 3 17 35 11 12 14 24 5 11 1 19 Device 151 | . 2 3 1 2 . 2 1 . 1 2 2 7 1 1 5 1 3 . 3 5 5 1 1 2 4 2 14 20 3 10 11 14 4 9 . 9 Storage 14 | 1 2 . 1 . . 1 . . . 1 . . . . . . . . . . . . . . . . 1 1 . 1 1 . . . . 4 Processor 10 | . . . 1 . . 1 . . . . . . 1 . . . 1 . . 1 . . . . . . . . . . 1 1 . . . 3 Hackware 21 | . . . . . . . . . . 1 3 6 . . . . 2 . . . . . . . . . 1 3 3 . . 1 . . . 1 Protection 54 | . . . . 1 . 3 3 1 . 1 5 2 . 1 2 1 . . 2 2 . . 1 3 1 1 1 11 5 1 1 3 1 . 1 . Artifact 9 | . . . . . . . . . . . . . . . . . . . . . . . . . . . . . . . . 5 . 2 . 2 Weapon 162 | 2 3 . 9 3 2 4 12 1 5 . 10 8 8 2 2 . 4 . 1 3 3 2 . 3 5 2 5 21 5 1 6 10 2 10 1 7 Energy Gun 42 | . 1 . 2 . . . 2 . . . . . 3 . 1 . 3 . . 2 1 1 . 2 4 1 1 11 1 . . 1 1 2 . 2 Energy Cannon 83 | . 2 . 6 3 1 3 6 1 3 . 6 5 3 1 1 . 1 . 1 . 2 . . . 1 1 4 6 3 1 4 7 1 5 1 4 Ballistic Gun 6 | 2 . . . . . . 2 . . . . . . . . . . . . . . . . . . . . 1 . . . . . . . 1 Ballistic Cannon 3 | . . . . . . . . . . . . . . . . . . . . . . . . . . . . . . . . . . 3 . . Launcher 9 | . . . 1 . . . 1 . 1 . 1 1 1 1 . . . . . . . 1 . . . . . . . . . 1 . . . . Special Weapon 14 | . . . . . . . 1 . 1 . 3 2 . . . . . . . . . . . 1 . . . 3 . . 2 1 . . . . Impact Weapon . | . . . . . . . . . . . . . . . . . . . . . . . . . . . . . . . . . . . . . Slashing Weapon 2 | . . . . . 1 1 . . . . . . . . . . . . . . . . . . . . . . . . . . . . . . Piercing Weapon 3 | . . . . . . . . . . . . . 1 . . . . . . 1 . . . . . . . . 1 . . . . . . . Special Melee Weapon . | . . . . . . . . . . . . . . . . . . . . . . . . . . . . . . . . . . . . . Unidentified Prototypes 33 | . . 1 3 3 . . . . . . . . 5 . . . . . . . . . . 1 . . . . 6 . 2 3 . 6 . 3 Corrupted Parts 4 | . . . . . . . . . . . . . . . . . . . . . . . . 1 1 . . 2 . . . . . . . . System Corruption 14 | . . . . . . . . . . . . . . . . . . . . . . . . 2 3 . . 9 . . . . . . . . Parts Lost 117 | . 1 1 . 1 . 2 7 . 1 . 4 2 . 1 . 1 . . . 6 1 . 1 1 . 4 7 38 2 2 6 5 3 5 . 15 Power 17 | . . . . . . . 1 . . . . . . . . . . . . 1 . . . . . 1 2 6 1 . 2 . . 1 . 2 Propulsion 25 | . . . . 1 . . 1 . . . 2 1 . 1 . 1 . . . 3 1 . 1 . . 1 2 9 . . . . . . . 1 Utility 43 | . 1 1 . . . 1 3 . 1 . 1 . . . . . . . . 2 . . . . . 1 . 13 1 1 2 2 1 3 . 9 Weapon 32 | . . . . . . 1 2 . . . 1 1 . . . . . . . . . . . 1 . 1 3 10 . 1 2 3 2 1 . 3 Highest Loss Streak 26 | . 1 1 . 1 . 1 2 . 1 . 1 1 . 1 . 1 . . . 5 1 . 1 1 . 2 5 26 2 1 3 1 2 2 . 11 To Critical Strikes 2 | . . . . . . . . . . . 1 . . . . 1 . . . . . . . . . . . . . . . . . . . . Average Slot Usage (%) 84 | . 98 99 98 99 100 99 98 89 90 84 74 80 76 76 70 79 85 86 86 87 92 94 94 88 87 87 87 84 81 80 77 67 65 65 61 69 Engine 5 | . 14 14 11 11 11 9 9 9 9 7 7 7 7 7 7 7 6 6 6 4 . . . . . . . . . . . . . . . . Reactor 3 | . . . . . . . . . . . . . . . . . . . . 1 6 11 11 11 11 10 9 8 10 9 7 4 4 4 7 10 Treads 13 | . 27 28 21 21 22 17 16 9 9 7 8 9 15 15 15 18 18 6 6 5 10 11 11 5 5 5 4 12 10 13 13 13 12 10 . . Wheel 6 | . . . 10 11 11 17 18 18 18 15 4 10 . . . . 1 13 13 14 14 11 11 11 10 11 9 3 . . . . . . . . Device 13 | . 12 13 11 10 11 8 9 9 9 13 7 13 15 13 13 14 12 13 7 13 13 17 16 16 17 16 20 16 20 23 23 12 16 19 11 14 Storage 7 | . 14 14 11 11 11 9 9 9 9 7 7 7 7 7 7 7 6 6 6 6 6 5 5 5 5 5 4 8 5 3 4 4 4 4 3 4 Processor 8 | . . . 10 11 11 9 9 9 9 7 7 7 7 7 7 7 12 13 13 9 13 11 11 11 11 11 10 6 5 4 4 8 8 8 7 10 Hackware 2 | . . . . . . . . . . 6 7 7 7 7 7 7 6 6 6 3 . . . . . . 5 1 5 2 . 3 4 4 3 3 Protection 4 | . . . . . . 8 9 8 9 1 6 . . . 1 . . . 4 4 6 5 5 5 5 5 5 7 9 9 8 3 4 3 3 2 Energy Gun 5 | . 7 . . . . . 1 . . . . . 6 7 4 7 19 20 17 17 16 12 17 15 16 16 5 6 . . . . 6 2 . 1 Energy Cannon 10 | . 10 28 21 21 22 16 15 18 17 15 14 14 7 6 4 7 . . 1 1 3 3 . . . . 9 7 14 13 12 12 4 3 3 3 Naked Turns . | . . . . . . . . . . . . . . . . . . . . . . . . . . . . . . . . . . . . . Heaviest Build 273 | 13 91 54 98 98 98 108 118 120 120 186 181 181 181 181 181 181 183 183 188 196 198 216 213 213 217 218 236 256 230 240 262 269 245 253 273 273 Greatest Support 270 | 40 40 40 43 43 12 24 24 75 75 24 150 150 150 150 150 150 131 28 28 38 38 26 26 26 80 26 26 160 160 240 270 270 270 270 200 235 Greatest Overweight (x) 56 | . 2 1 9 9 9 4 4 4 4 7 7 7 1 1 1 2 6 6 6 8 7 8 8 8 21 8 9 56 1 . 1 . . 2 1 1 Average Overweight (x) 3 | . 1 1 7 8 8 4 4 3 3 7 3 5 1 1 1 1 1 6 6 5 6 8 7 7 7 7 8 4 1 . . . . . 1 . Largest Inventory Capacity 30 | 8 25 20 25 25 25 25 25 25 25 30 30 30 30 30 30 30 30 30 30 30 30 30 30 30 30 30 30 30 30 30 30 30 30 30 30 30 Average Capacity 27 | 6 22 20 23 25 25 25 25 25 25 30 30 30 30 30 30 30 30 30 30 30 30 30 30 30 30 30 29 30 30 29 30 30 30 30 30 10 Most Carried 30 | 1 15 16 25 25 25 25 25 25 25 24 30 30 30 30 30 30 30 30 30 30 29 29 30 30 30 30 30 30 30 30 30 30 30 30 24 24 Average Carried 25 | . 7 14 20 24 24 24 24 24 24 23 23 28 29 29 28 29 27 30 30 27 27 28 29 29 30 29 24 20 27 26 29 29 28 28 22 8 Final Capacity 30 | 8 20 20 25 25 25 25 25 25 25 30 30 30 30 30 30 30 30 30 30 30 30 30 30 30 30 30 30 30 30 30 30 30 30 30 30 10 Final Carried 30 | 1 14 15 25 25 25 25 25 25 25 24 30 26 30 28 30 28 30 30 30 25 29 29 30 30 30 28 27 26 29 30 30 30 29 25 24 10 Class Distribution -------------------- 26% | Scavenger-Gunner 25% | Mutant 21% | Hauler-Mutant 16% | Scavenger-Mutant 5% | Hauler-Gunner Dominant Class ---------------- Mutant | -10/Materials Mutant | -10/Mines Mutant | -9/Materials Mutant | -9/Storage Mutant | -9/Garrison Mutant | -8/Materials Mutant | -8/Garrison Mutant | -8/Materials Mutant | -8/Garrison Hauler-Mutant | -7/Factory Hauler-Mutant | -7/Garrison Hauler-Mutant | -7/Factory Hauler-Mutant | -7/Lower Caves Hauler-Mutant | -7/Lower Caves Hauler-Mutant | -7/Zion Hauler-Mutant | -6/Proximity Caves Hauler-Gunner | -6/Factory Hauler-Gunner | -6/Lower Caves Hauler-Gunner | -6/Lower Caves Hauler-Mutant | -6/Data Miner Scavenger-Mutant | -5/Proximity Caves Scavenger-Mutant | -5/Factory Scavenger-Gunner | -5/Extension Scavenger-Gunner | -5/Cetus Scavenger-Gunner | -5/Archives Scavenger-Gunner | -5/Hub_04(d) Scavenger-Gunner | -4/Factory Scavenger-Gunner | -4/Armory Scavenger-Gunner | -4/Lab Scavenger-Gunner | -3/Research Scavenger-Gunner | -3/Quarantine Scavenger-Gunner | -3/Section 7 Scavenger-Mutant | -2/Research Scavenger-Mutant | -2/Testing Scavenger-Mutant | -1/Access Scavenger-Mutant | -1/Command Resources | -11 -10 -10 -9 -9 -9 -8 -8 -8 -8 -7 -7 -7 -7 -7 -7 -6 -6 -6 -6 -6 -5 -5 -5 -5 -5 -5 -4 -4 -4 -3 -3 -3 -2 -2 -1 -1 ----------- Run | Scr Mat Min Mat Sto Gar Mat Gar Mat Gar Fac Gar Fac Low Low Zio Pro Fac Low Low Dat Pro Fac Ext Cet Arc Hub Fac Arm Lab Res Qua Sec Res Tes Acc Com Matter Collected 7781 | 260 171 32 193 165 47 154 390 30 90 50 366 174 289 109 20 60 185 . 60 125 100 16 114 104 140 70 258 820 365 171 336 412 26 1128 326 425 Remotely . | . . . . . . . . . . . . . . . . . . . . . . . . . . . . . . . . . . . . . Salvage Created 35822 | . 617 133 926 1588 580 951 1283 365 997 117 1414 249 78 249 216 105 772 21 410 405 538 89 827 179 255 1035 1570 3476 609 1641 2719 4703 1701 2668 822 1514 Parts 1585 | . 39 3 70 88 30 43 80 21 43 2 63 19 5 15 15 7 43 1 10 6 20 12 34 16 18 50 52 147 21 53 113 188 57 100 38 63 Haulers Intercepted 22 | . 1 . 5 6 . 1 . 2 . . . . . . . . 1 . . . 1 . 1 . . 1 . . . 1 . . . 1 1 . Recyclers Shooed 11 | . 1 1 1 . . . . 1 . . . . . . . . 4 . . . . . 1 . . . . . . 2 . . . . . . Parts Field Recycled . | . . . . . . . . . . . . . . . . . . . . . . . . . . . . . . . . . . . . . Retrieved Matter . | . . . . . . . . . . . . . . . . . . . . . . . . . . . . . . . . . . . . . Parts Self-Destructed 66 | . . . . . . . . . . . . . 13 17 . 7 . 1 10 . 18 . . . . . . . . . . . . . . . Prevented 3 | . . . . . . . . . . . . . . 3 . . . . . . . . . . . . . . . . . . . . . . Kills | -11 -10 -10 -9 -9 -9 -8 -8 -8 -8 -7 -7 -7 -7 -7 -7 -6 -6 -6 -6 -6 -5 -5 -5 -5 -5 -5 -4 -4 -4 -3 -3 -3 -2 -2 -1 -1 ------- Run | Scr Mat Min Mat Sto Gar Mat Gar Mat Gar Fac Gar Fac Low Low Zio Pro Fac Low Low Dat Pro Fac Ext Cet Arc Hub Fac Arm Lab Res Qua Sec Res Tes Acc Com Combat Hostiles Destroyed 494 | . 16 3 21 23 11 15 28 5 18 2 25 9 2 7 2 2 6 . 7 4 7 4 10 2 1 9 21 46 8 16 29 62 20 28 11 14 Guns 81 | . 11 . . . . . . . . . . . . 2 . . 6 . 7 1 6 . 10 2 1 7 3 23 . . . 2 . . . . Cannons 339 | . 5 3 18 23 11 12 20 5 14 2 22 4 2 2 . 2 . . . . 1 . . . . 1 14 17 8 16 27 50 12 25 11 12 AOE 29 | . . . 3 . . . 3 . 4 . 3 5 . 3 . . . . . . . 4 . . . . . . . . . 4 . . . . Classes Destroyed 29 | . 5 . 1 4 1 2 3 . . . . 2 1 . 1 . 1 . . . . . 1 . . 1 . . . . 1 5 . . . . Worker 10 | . . . . 3 . . . . . . . 1 . . . . . . . . . . . . . 4 . . . . . . . 2 . . Builder 12 | . . . . 1 . 1 . . . . . 2 . . . . 2 . . . . 1 . . . 3 1 . . . . . . 1 . . Tunneler 2 | . . . . . . . . . . . . . . . . . . . . . . . 1 . . 1 . . . . . . . . . . Hauler 22 | . 1 . 5 6 . 1 . 2 . . . . . . . . 1 . . . 1 . 1 . . 1 . . . 1 . . . 1 1 . Recycler 9 | . 1 . . 1 . . . . . . . . . . . . 2 . . . . . 1 . . 1 . . . 3 . . . . . . Carrier 1 | . . . . . . . . . . . . . . . . . . . . . . . . . . . . . . . . 1 . . . . Minesweeper 3 | . . . . . . . . . . . . . 1 1 . . . 1 . . . . . . . . . . . . . . . . . . Mechanic 3 | . . . . . . . . . . . . . . . . . 1 . . . . . . . . . . . . . . 1 . 1 . . Operator 17 | . . . . 2 . 1 . . . . . . . . . . . . . . . 1 1 . 5 1 . 2 . . 2 1 . 1 . . Watcher 33 | . 1 . 3 2 . 2 . 1 . . . . . . . . 1 . . . . . . . . 5 1 3 . 3 3 2 . 1 . 5 Swarmer 79 | . 6 . 9 3 4 . 10 . 4 . 10 . 2 4 . . . . . . . 4 5 1 . 3 . . . 4 . 7 . . 3 . Saboteur 1 | . . . . . . . . . . . . . . . . . . . . . . . . . . . . . . . . 1 . . . . Grunt 167 | . 10 3 8 12 4 7 4 4 9 . 7 1 . 1 . . 2 . 6 . 5 . 1 1 . . 7 10 7 9 5 20 7 10 3 4 Brawler 4 | . . . . . . . 1 . . . . . . . . . . . . . . . . . . . . . . 1 . . 1 . 1 . Duelist 13 | . . . . . . . 2 . . . . . . 1 . . . . 1 . . . . . . . . . . . . 5 1 3 . . Protector 5 | . . . . 1 . . . . . . . 1 . . . . . . . . . . . . . . . . . . . 1 1 . . 1 Researcher 7 | . . . . . . . . . . . . . . . . . . . . . . . . . . . . . . . . 5 . 2 . . Sentry 60 | . . . 4 7 2 5 6 . 5 1 2 . . . . . 1 . . . 1 . 4 . 1 1 5 5 . . . 3 3 1 1 2 Demolisher 2 | . . . . . . . . . . . . 1 . . . . . . . . . . . . . . . 1 . . . . . . . . Specialist 12 | . . . . . . 2 1 . . . . . . . . . . . . . . . . . . 2 . 2 . . 3 . 2 . . . Hunter 38 | . . . . . . 1 2 1 . 1 1 1 . . . 2 1 . . . . . . . . 2 2 11 . . 5 2 2 4 . . Programmer 66 | . . . . . 1 . . . . . 4 1 . 1 . . 2 . . . 1 . . . . . 7 13 . . 11 11 2 6 3 3 Heavy 4 | . . . . . . . . . . . . . . . . . . . . . . . . . . 1 . 2 . . . . 1 . . . Behemoth 2 | . . . . . . . 2 . . . . . . . . . . . . . . . . . . . . . . . . . . . . . S7 Guard 3 | . . . . . . . . . . . . . . . . . . . . . . . . . . . . . . . . 3 . . . . M Guard 2 | . . . . . . . . . . . . . . . . . . . . . . . . . . . . . . . . . . . . 2 Enhanced Grunt 4 | . . . . . . . . . . . . . . . . . . . . 4 . . . . . . . . . . . . . . . . Tracker 9 | . . . . . . . . . . . . . . . . . . . . . . . . . . . . 1 . 2 2 2 . 2 . . Combat Programmer 9 | . . . . . . . . . . . . . . . . . . . . . . . . . . . . 1 . . 2 2 . 2 . 2 Striker 4 | . . . . . . . . . . . . . . . . . . . . . . . . . . . . . . . . 4 . . . . Alpha 7 1 | . . . . . . . . . . . . . . . . . . . . . . . . . . . . . . . . 1 . . . . Fortress 1 | . . . . . . . . . . . . . . . . . . . . . . . . . . . . . . . 1 . . . . . Zionite 1 | . . . . . . . . . . . . . . . 1 . . . . . . . . . . . . . . . . . . . . . Assembled 4 | . . . . . . . . . . . . 4 . . . . . . . . . . . . . . . . . . . . . . . . Savage 1 | . . . . . . . . . . . . . . . . . . . . . . . 1 . . . . . . . . . . . . . Butcher 1 | . . . . . . . . . . . 1 . . . . . . . . . . . . . . . . . . . . . . . . . Marauder 2 | . . . . . . . . . . . . . . . 2 . . . . . . . . . . . . . . . . . . . . . Best Kill Streak 13 | . 3 2 6 6 6 3 6 2 4 2 4 5 2 4 2 1 6 1 4 1 4 5 4 1 4 6 12 9 6 4 8 9 9 13 7 5 Combat Bots Only 11 | . 3 2 6 4 6 3 6 2 4 2 4 5 2 4 2 1 2 . 4 1 4 4 4 1 1 3 11 9 6 4 8 7 9 8 6 5 Max Kills in Single Turn 6 | . 1 1 3 2 1 1 3 1 3 1 3 3 2 3 1 1 2 1 2 1 1 3 2 1 1 6 1 2 2 1 1 3 1 2 3 3 Gunslinging 1 | . . . . . . . . . . . . . . . . . . . 1 . . . 1 . . . . 1 . . . . . . . . Exploded 3 | . . . 3 . . . 3 . 3 . 3 3 . 3 . . . . . . . 3 . . . . . . . . . 3 . . . . Melee . | . . . . . . . . . . . . . . . . . . . . . . . . . . . . . . . . . . . . . Uniques/NPCs Destroyed 2 | . . . . . . . . . . . . . . . . . . . . . . . . 1 . . . . 1 . . . . . . . A7 (-5/Cetus) A5 (-4/Lab) Combat | -11 -10 -10 -9 -9 -9 -8 -8 -8 -8 -7 -7 -7 -7 -7 -7 -6 -6 -6 -6 -6 -5 -5 -5 -5 -5 -5 -4 -4 -4 -3 -3 -3 -2 -2 -1 -1 -------- Run | Scr Mat Min Mat Sto Gar Mat Gar Mat Gar Fac Gar Fac Low Low Zio Pro Fac Low Low Dat Pro Fac Ext Cet Arc Hub Fac Arm Lab Res Qua Sec Res Tes Acc Com Damage Taken 49898 | . 539 244 312 527 215 895 1661 49 563 290 1239 988 137 133 314 287 72 . 477 1392 241 177 146 220 98 1603 2306 10184 850 797 4221 5363 1496 4068 938 6856 Core 4726 | . 33 42 28 35 27 48 133 . 53 . 140 102 42 . . 16 19 . 38 168 16 14 11 . . 171 180 601 . . 86 899 157 318 227 1122 Absorbed by Shields 4712 | . . . . . . . 238 . 91 . . . . . . . . . . . . . 50 12 . . . 839 . . 702 1851 . . . 929 Reduced by Siege Mode 2841 | . . . . . . . 14 4 40 8 46 9 . . 45 32 . . 30 69 . . . . . 65 100 604 113 87 1014 328 83 150 . . Regen/Repaired (Parts) 9533 | . 124 . 197 14 . 110 . 388 . . 149 15 . 18 32 8 . . 150 2 . . . 146 74 165 1409 527 195 878 785 1242 515 1072 552 766 Core Remaining (%) 59 | 100 . 70 . . 77 . . . 57 . . . . . . 57 . . . . 71 . . . . 80 . . 32 . . 43 . 55 . 15 Volleys Fired 1892 | . 48 15 42 64 42 62 144 18 84 8 103 53 18 32 13 18 20 3 24 27 41 20 22 26 11 48 55 165 37 39 89 158 84 110 29 120 Largest 3 | . 2 2 2 2 2 2 2 2 2 2 2 2 2 2 2 2 3 3 3 3 3 3 3 3 3 3 3 3 3 3 3 3 3 1 2 3 Hottest 360 | . 136 136 136 136 136 136 160 158 158 158 158 158 130 130 130 130 195 195 195 215 195 195 195 195 253 257 278 360 360 360 360 360 250 120 250 360 Shots Fired 3697 | . 96 30 83 128 85 113 251 36 125 16 152 80 26 41 19 27 60 9 48 71 67 24 66 43 33 139 142 394 103 109 222 414 86 110 30 219 Gun 993 | . 56 . . . . . 59 . . . . . 4 12 6 9 60 9 36 71 37 5 66 25 33 129 36 221 . . . 24 2 . . 93 Cannon 2549 | . 40 30 82 128 85 113 172 36 99 16 110 71 22 27 13 18 . . 12 . 30 15 . . . 10 106 150 103 109 216 386 84 110 30 126 Launcher 18 | . . . 1 . . . 1 . 2 . 2 4 . 2 . . . . . . . 4 . . . . . . . . . 2 . . . . Special 137 | . . . . . . . 19 . 24 . 40 5 . . . . . . . . . . . 18 . . . 23 . . 6 2 . . . . Kinetic 145 | . 40 . . . . . 46 . . . . . . . . . . . . . . . . . . . . 17 . . . . . 27 6 9 Thermal 3382 | . 56 30 82 128 85 113 204 36 123 16 137 71 26 39 19 27 60 9 48 71 67 20 66 43 33 139 142 336 103 109 222 412 86 83 24 117 Explosive 16 | . . . 1 . . . 1 . 2 . 2 4 . 2 . . . . . . . 4 . . . . . . . . . . . . . . Electromagnetic 20 | . . . . . . . . . . . . . . . . . . . . . . . . . . . . 18 . . . 2 . . . . Slashing 93 | . . . . . . . . . . . . . . . . . . . . . . . . . . . . . . . . . . . . 93 Robot Hit Streak 63 | . 12 6 16 18 17 20 20 21 36 32 25 9 5 13 11 13 14 18 21 14 12 13 20 22 25 27 24 35 44 27 42 63 47 23 11 59 Robot Miss Streak 10 | . 5 2 3 3 1 2 2 2 1 . 2 3 3 1 . 1 2 . 2 3 1 . 3 2 2 2 2 4 1 2 3 2 1 6 10 5 Penetration Max 3 | . . . . . . . . . . . . . . . . . . . . . . . . . . . . 2 . . . . . 2 1 3 Secondary Targets 14 | . . . . . . . . . . . . . . . . . . . 4 . 1 . 2 . 1 . . 6 . . . . . . . . Max Gunslinging Chain 2 | . . . . . . . . . . . . . . . . . . . 1 . 1 . 1 . 1 . . 2 . . . . . . . . Capacitor 242 | . . . . . . . . . . . . . . . . . . . . . . . . . . . . . . . . . 83 83 23 53 Shots Hit Robots 2365 | . 59 19 52 87 36 85 117 30 71 15 107 35 9 17 10 13 39 7 28 58 34 3 44 38 27 98 95 267 42 54 137 290 49 85 19 189 Core Hits 1152 | . 27 6 30 42 17 25 48 10 38 5 49 31 3 12 4 5 22 2 13 24 17 6 26 18 12 41 33 99 23 26 54 142 30 105 24 83 Critical Kills 71 | . . . . . 1 . 5 . . . . . . . 1 . . . . . . . . . . . 1 6 . . 2 6 8 24 7 10 Critical Parts Destroyed 62 | . . . . . . . 1 . . . . . . . . . . . . . . . . . . . . 1 . . . . . 41 7 12 Critical Strikes 166 | . . . . . 1 . 6 . 2 . . . 1 . 2 1 . 1 1 3 3 . . 1 1 4 2 7 . . 3 6 8 70 17 26 Burn 18 | . . . . . . . . . . . . . 1 . 1 1 . 1 1 3 3 . . 1 1 4 1 . . . . . . . . . Meltdown 33 | . . . . . 1 . 5 . . . . . . . 1 . . . . . . . . . . . 1 4 . . 2 6 8 3 . 2 Destroy 112 | . . . . . . . 1 . . . . . . . . . . . . . . . . . . . . 3 . . . . . 67 17 24 Sever 3 | . . . . . . . . . 2 . . . . . . . . . . . . . . . . . . . . . 1 . . . . . Melee Attacks 11 | . . . . . 2 3 . . . . . . . . . . . . . 6 . . . . . . . . . . . . . . . . Impact . | . . . . . . . . . . . . . . . . . . . . . . . . . . . . . . . . . . . . . Slashing 5 | . . . . . 2 3 . . . . . . . . . . . . . . . . . . . . . . . . . . . . . . Piercing 6 | . . . . . . . . . . . . . . . . . . . . 6 . . . . . . . . . . . . . . . . Sneak Attacks 2 | . . . . . . 1 . . . . . . . . . . . . . 1 . . . . . . . . . . . . . . . . Combat Hostiles . | . . . . . . . . . . . . . . . . . . . . . . . . . . . . . . . . . . . . . Follow-up Attacks . | . . . . . . . . . . . . . . . . . . . . . . . . . . . . . . . . . . . . . Damage Inflicted 83916 | . 939 459 1322 1943 818 1952 3324 841 2033 406 2758 1579 285 669 230 340 1102 180 774 1057 920 374 1505 882 786 3353 3475 8446 1822 2686 6713 13202 3712 3662 973 8394 Guns 20531 | . 461 . . . . . 858 . . . . . 78 228 137 151 1102 180 774 969 862 56 1505 629 786 2770 777 4417 . . . 778 67 . . 2946 Cannons 58869 | . 472 430 1165 1931 818 1859 2093 841 1427 406 2031 754 207 233 93 189 . . . . 58 . . . . 220 2698 4029 1822 2686 6661 12104 3645 3576 973 5448 Explosions 2815 | . . . 144 . . . 167 . 259 . 311 797 . 208 . . . . . . . 318 . . . 344 . . . . . 267 . . . . Melee 172 | . . . . . . 84 . . . . . . . . . . . . . 88 . . . . . . . . . . . . . . . . Ramming 232 | . 6 29 13 12 . 9 3 . . . . 28 . . . . . . . . . . . . . 19 . . . . . 27 . 86 . . Kinetic 2043 | . 321 . . . . . 535 . . . . . . . . . . . . . . . . . . . . 342 . . . . . 507 116 222 Thermal 75412 | . 612 430 1165 1931 818 1859 2619 841 1774 406 2447 754 285 461 230 340 1102 180 774 969 920 56 1505 882 786 2990 3475 7750 1822 2686 6713 12966 3712 3069 857 5226 Explosive 2204 | . . . 144 . . . 167 . 259 . 311 797 . 208 . . . . . . . 318 . . . . . . . . . . . . . . Electromagnetic 907 | . . . . . . . . . . . . . . . . . . . . . . . . . . 344 . 354 . . . 209 . . . . Impact . | . . . . . . . . . . . . . . . . . . . . . . . . . . . . . . . . . . . . . Slashing 3030 | . . . . . . 84 . . . . . . . . . . . . . . . . . . . . . . . . . . . . . 2946 Piercing 88 | . . . . . . . . . . . . . . . . . . . . 88 . . . . . . . . . . . . . . . . Highest Corruption 32 | . . . . . 2 . . . . . 2 2 2 3 3 . . . . . . . . 2 5 5 5 25 32 . 19 19 . . . . Average Corruption 8 | . . . . . 1 . . . . . 1 2 2 2 3 . . . . . . . . 2 2 1 2 16 31 . 10 19 . . . . Corruption Purged 5 | . . . . . . . . . . . . . . . . . . . . . . . . . 5 . . . . . . . . . . . Corruption Blocked . | . . . . . . . . . . . . . . . . . . . . . . . . . . . . . . . . . . . . . Effects 431 | . . . . . 8 . . . . . 22 30 13 18 2 . . . . . . . . 7 6 1 16 98 42 . 60 108 . . . . Message Errors 91 | . . . . . 1 . . . . . 7 9 2 7 1 . . . . . . . . 3 1 1 1 15 4 . 14 25 . . . . Matter Fused 94 | . . . . . 2 . . . . . 4 5 2 6 . . . . . . . . . 1 2 . 4 25 8 . 16 19 . . . . Heat Flow Errors 42 | . . . . . 1 . . . . . . 3 3 2 . . . . . . . . . 1 . . 5 10 5 . 3 9 . . . . Energy Discharges 49 | . . . . . . . . . . . 4 5 . 2 . . . . . . . . . 1 . . 2 13 5 . 4 13 . . . . Parts Rejected 6 | . . . . . . . . . . . . 1 . . . . . . . . . . . . . . . 1 . . 1 3 . . . . Data Loss (minor) 52 | . . . . . 2 . . . . . 5 1 5 1 1 . . . . . . . . . 1 . 3 12 3 . 6 12 . . . . Data Loss (major) 25 | . . . . . . . . . . . 1 3 1 . . . . . . . . . . . 1 . . 6 5 . 3 5 . . . . Misfires 22 | . . . . . 1 . . . . . 1 1 . . . . . . . . . . . 1 . . 1 6 4 . 2 5 . . . . Alerts 9 | . . . . . 1 . . . . . . 1 . . . . . . . . . . . . 1 . . . 2 . 2 2 . . . . Misdirections 4 | . . . . . . . . . . . . . . . . . . . . . . . . . . . . 1 . . . 3 . . . . Weapon Failures 37 | . . . . . . . . . . . . 1 . . . . . . . . . . . . . . . 9 6 . 9 12 . . . . Overload Shots 14 | . . . . . . . . . . . . . . . . . . . . . . . . . . . . . . . . . . . 1 13 Overflow Damage 1683 | . 1 . 2 2 . 5 14 16 34 . 39 19 15 16 . . . . . 28 . 27 . 1 . 20 136 55 11 174 359 328 81 72 112 116 Projectiles 1569 | . 1 . 2 2 . 5 4 16 23 . 39 . 15 16 . . . . . . . . . 1 . 3 136 55 11 174 359 328 81 70 112 116 Explosions 84 | . . . . . . . 10 . 11 . . 19 . . . . . . . . . 27 . . . 17 . . . . . . . . . . Melee 30 | . . . . . . . . . . . . . . . . . . . . 28 . . . . . . . . . . . . . 2 . . Knockbacks 38 | . . . . . . 1 . . . . . . . . . . . . . . . . . . . . . . . . . . . 31 1 5 Impact 1 | . . . . . . 1 . . . . . . . . . . . . . . . . . . . . . . . . . . . . . . Kinetic 34 | . . . . . . . . . . . . . . . . . . . . . . . . . . . . . . . . . . 29 1 4 Secondary 3 | . . . . . . . . . . . . . . . . . . . . . . . . . . . . . . . . . . 2 . 1 Self-Inflicted Damage 367 | . . . . . . . 30 . . . . 237 . . . . . . . . . . . . . 100 . . . . . . . . . . Shots 5 | . . . . . . . 1 . . . . 3 . . . . . . . . . . . . . 1 . . . . . . . . . . Rammed 25 | . 3 4 2 3 . 2 2 . . . . 1 . . . . . . . . . . . . . 1 . . . . . 2 . 5 . . Targets Rammed 27 | . 3 4 2 3 . 2 2 . . . . 2 . . . . 1 . . . . . . . . 1 . . . . . 2 . 5 . . Kicked . | . . . . . . . . . . . . . . . . . . . . . . . . . . . . . . . . . . . . . Crushed 2 | . . . . . . . . . . . . 1 . . . . 1 . . . . . . . . . . . . . . . . . . . Highest Temperature 411 | . 312 411 156 96 213 186 152 210 319 198 153 237 208 244 . . 143 39 322 276 303 . 3 69 48 162 320 313 384 228 124 206 88 244 . 336 Average Temperature 64 | . 107 179 33 18 33 36 36 58 66 93 39 58 97 99 . . 43 26 143 164 124 . 3 69 20 46 77 105 72 71 33 31 28 69 . 63 Received Heat Transfer 6466 | . 192 138 63 201 36 369 268 9 256 54 291 160 . 9 . . 9 . 246 . 75 . 9 . 9 108 346 1461 117 87 349 559 225 360 18 442 Effects 5 | . . 1 . . . . . . 3 . . . . . . . . . . . 1 . . . . . . . . . . . . . . . Interference 4 | . . . . . . . . . 3 . . . . . . . . . . . 1 . . . . . . . . . . . . . . . Short Circuit 1 | . . 1 . . . . . . . . . . . . . . . . . . . . . . . . . . . . . . . . . . Siege Activations 91 | . . . . . . . 2 3 11 1 7 2 . 1 2 1 1 . 2 1 . . . . 1 5 4 3 1 5 8 19 3 8 . . Total Turns 2160 | . . . . . . . 60 53 231 21 103 15 . 72 17 23 5 . 34 30 . . . . 3 57 135 155 58 155 239 509 46 139 . . Longest Duration 106 | . . . . . . . 34 33 82 21 29 8 . 72 14 23 5 . 25 30 . . . . 3 19 99 106 58 105 77 76 18 35 . . Robots Corrupted . | . . . . . . . . . . . . . . . . . . . . . . . . . . . . . . . . . . . . . Combat Hostiles . | . . . . . . . . . . . . . . . . . . . . . . . . . . . . . . . . . . . . . Parts Fried 9 | . . . . . . . . . . . . . . . . . . . . . . . . . . 2 . 4 . . 1 2 . . . . Impact Corruptions 1 | . . . . . . . . . . . . . . . . . . . . . . . . . . . . . . . . . . 1 . . Robots Melted 49 | . . . . . 1 3 5 1 . . . . . . 2 . . . . 3 . . . . . 1 5 6 . . 2 7 8 3 . 2 Combat Hostiles 45 | . . . . . . 3 5 . . . . . . . 2 . . . . 3 . . . . . 1 4 6 . . 2 6 8 3 . 2 Parts Melted 267 | . 2 2 2 4 7 7 10 4 . 5 8 2 . 1 2 3 5 . 4 8 5 1 7 . 2 17 26 34 2 8 22 33 16 10 2 6 Heat Transferred 84730 | . 1184 777 2035 3351 1369 3108 4646 1305 2568 646 3994 1025 481 629 444 555 1591 333 1184 2459 1406 74 1943 1517 1073 4074 4636 9293 1569 2072 4917 10872 2719 2220 592 2069 Parts Sabotaged 3 | . . . . . . . . . . . . . . . . . . . . . . . . . . . . . . . . . . 3 . . Parts Stolen . | . . . . . . . . . . . . . . . . . . . . . . . . . . . . . . . . . . . . . Parts Stripped . | . . . . . . . . . . . . . . . . . . . . . . . . . . . . . . . . . . . . . Power Chain Reactions 1 | . . . . . . . . . . . . . . . . . . . . . . . . . . . . . . . . 1 . . . . Missiles Intercepted . | . . . . . . . . . . . . . . . . . . . . . . . . . . . . . . . . . . . . . Alert | -11 -10 -10 -9 -9 -9 -8 -8 -8 -8 -7 -7 -7 -7 -7 -7 -6 -6 -6 -6 -6 -5 -5 -5 -5 -5 -5 -4 -4 -4 -3 -3 -3 -2 -2 -1 -1 ------- Run | Scr Mat Min Mat Sto Gar Mat Gar Mat Gar Fac Gar Fac Low Low Zio Pro Fac Low Low Dat Pro Fac Ext Cet Arc Hub Fac Arm Lab Res Qua Sec Res Tes Acc Com Peak Influence 1908 | . 310 136 487 649 993 483 1410 844 1474 834 1604 932 . . . . 216 . . . . 167 470 1070 529 823 629 709 . 341 609 1908 1441 1526 1297 1018 Initial 1100 | . . 86 . 205 232 483 233 687 331 773 583 842 . . . . . . . . . 12 81 263 397 184 398 264 . . 126 309 1100 810 903 704 Average 565 | . 146 47 127 376 651 224 722 686 921 785 1125 700 . . . . 44 . . . . 69 153 720 502 354 460 442 . 139 397 1058 1193 987 1047 875 Maximum Alert Level 5 | . 1 . 2 2 3 2 4 3 4 3 5 3 . . . . 1 . . . . . 2 3 2 3 2 3 . 1 2 5 4 4 4 4 Low Security (%) 22 | 100 78 100 81 . . 42 . . . . . . . . . . 97 . . . . 100 72 . . 13 . 2 . 79 9 . . . . . Level 1 19 | . 21 . 12 64 26 56 17 . 9 . . . . . . . 2 . . . . . 19 18 3 59 50 32 . 20 38 7 . . . . Level 2 23 | . . . 5 35 17 . 26 42 20 . 10 56 . . . . . . . . . . 8 18 96 24 49 63 . . 52 18 . 12 . . Level 3 22 | . . . . . 55 . 41 57 36 100 34 43 . . . . . . . . . . . 62 . 2 . 1 . . . 25 . 63 66 98 Level 4 11 | . . . . . . . 14 . 34 . 51 . . . . . . . . . . . . . . . . . . . . 33 100 23 33 1 Level 5 . | . . . . . . . . . . . 3 . . . . . . . . . . . . . . . . . . . . 8 . . . . High Security . | . . . . . . . . . . . . . . . . . . . . . . . . . . . . . . . . 6 . . . . Max Security . | . . . . . . . . . . . . . . . . . . . . . . . . . . . . . . . . . . . . . Squads Dispatched 114 | . 5 . 3 4 . 4 . 1 . 1 . 2 . . . . 3 . . . . 1 3 . . 3 3 13 . 9 8 23 6 15 5 2 Investigation 15 | . 2 . 3 . . . . 1 . . . . . . . . . . . . . . 3 . . . . 1 . 3 1 1 . . . . Extermination 27 | . . . . . . . . . . . . 2 . . . . 2 . . . . 1 . . . . 3 4 . . 4 5 2 2 1 1 Reinforcement 35 | . 3 . . 2 . 3 . . . . . . . . . . 1 . . . . . . . . 3 . 6 . 3 . 4 2 6 2 . Assault 19 | . . . . 2 . . . . . . . . . . . . . . . . . . . . . . . . . . . 10 2 3 1 1 Garrison 3 | . . . . . . 1 . . . 1 . . . . . . . . . . . . . . . . . . . . . . . 1 . . Intercept 15 | . . . . . . . . . . . . . . . . . . . . . . . . . . . . 2 . 3 3 3 . 3 1 . Searches Triggered . | . . . . . . . . . . . . . . . . . . . . . . . . . . . . . . . . . . . . . Construction Impeded 3 | . . . . 1 . . . . . . . . . . . . . . . . . . . . . 1 . . . . . . . 1 . . Haulers Reinforced 2 | . . . . . . . . . . . . . . . . . 1 . . . . . . . . . . . . . . . . 1 . . Active Scanning Responses . | . . . . . . . . . . . . . . . . . . . . . . . . . . . . . . . . . . . . . Cargo Convoy Interrupts 1 | . . . . . . . . . . . . 1 . . . . . . . . . . . . . . . . . . . . . . . . Stealth | -11 -10 -10 -9 -9 -9 -8 -8 -8 -8 -7 -7 -7 -7 -7 -7 -6 -6 -6 -6 -6 -5 -5 -5 -5 -5 -5 -4 -4 -4 -3 -3 -3 -2 -2 -1 -1 --------- Run | Scr Mat Min Mat Sto Gar Mat Gar Mat Gar Fac Gar Fac Low Low Zio Pro Fac Low Low Dat Pro Fac Ext Cet Arc Hub Fac Arm Lab Res Qua Sec Res Tes Acc Com Distress Signals 41 | . 2 . 3 6 . . . . . . . 1 . . . . . . . . . . 1 2 . 2 1 5 . 7 2 5 . 3 . 1 Communications Jammed 5 | . . . . . . . . . . . . 3 . . . . . . . . . . . . . . . . . . 2 . . . . . Distress Signals 1 | . . . . . . . . . . . . 1 . . . . . . . . . . . . . . . . . . . . . . . . Times Spotted 867 | . 27 4 31 38 20 20 35 8 31 2 32 32 5 7 5 2 16 . 7 4 7 4 25 19 4 30 23 63 8 21 35 125 23 63 14 77 Peak Tracking Total 42 | . 5 2 6 8 5 3 6 3 5 2 4 4 3 3 2 2 6 . 4 2 5 4 9 5 1 11 8 15 8 4 4 25 8 15 9 42 Tactical Retreats 37 | . 3 1 4 1 1 . 4 . 4 . . . . 1 2 . . . . . 1 . 1 . . 1 1 . . . . 3 1 1 3 4 Traps | -11 -10 -10 -9 -9 -9 -8 -8 -8 -8 -7 -7 -7 -7 -7 -7 -6 -6 -6 -6 -6 -5 -5 -5 -5 -5 -5 -4 -4 -4 -3 -3 -3 -2 -2 -1 -1 ------- Run | Scr Mat Min Mat Sto Gar Mat Gar Mat Gar Fac Gar Fac Low Low Zio Pro Fac Low Low Dat Pro Fac Ext Cet Arc Hub Fac Arm Lab Res Qua Sec Res Tes Acc Com Traps Triggered 30 | . . . 2 1 1 1 7 . 2 . 3 1 . . . . 1 . . . . 1 2 . . 2 1 2 . 1 1 1 . . . . Indirectly 3 | . . . . . . . . . . . . . . . . . . . . . . . . . . 2 . . . . . 1 . . . . Trap Hack Attempts . | . . . . . . . . . . . . . . . . . . . . . . . . . . . . . . . . . . . . . Triggered . | . . . . . . . . . . . . . . . . . . . . . . . . . . . . . . . . . . . . . Disarmed . | . . . . . . . . . . . . . . . . . . . . . . . . . . . . . . . . . . . . . Reprogrammed . | . . . . . . . . . . . . . . . . . . . . . . . . . . . . . . . . . . . . . Reused . | . . . . . . . . . . . . . . . . . . . . . . . . . . . . . . . . . . . . . Traps Extracted . | . . . . . . . . . . . . . . . . . . . . . . . . . . . . . . . . . . . . . Installed . | . . . . . . . . . . . . . . . . . . . . . . . . . . . . . . . . . . . . . Triggered 4 | . . . . . . . . . . . . 2 . 2 . . . . . . . . . . . . . . . . . . . . . . Machines | -11 -10 -10 -9 -9 -9 -8 -8 -8 -8 -7 -7 -7 -7 -7 -7 -6 -6 -6 -6 -6 -5 -5 -5 -5 -5 -5 -4 -4 -4 -3 -3 -3 -2 -2 -1 -1 ---------- Run | Scr Mat Min Mat Sto Gar Mat Gar Mat Gar Fac Gar Fac Low Low Zio Pro Fac Low Low Dat Pro Fac Ext Cet Arc Hub Fac Arm Lab Res Qua Sec Res Tes Acc Com Machines Disabled 101 | . 2 . 1 2 4 1 3 2 3 . 4 6 . . . . . . . . . 1 2 1 2 11 3 10 3 4 7 16 . 11 . 2 Max in Single Turn 7 | . 1 . 1 1 1 1 1 1 1 . 2 2 . . . . . . . . . 1 1 . 1 7 1 2 1 1 1 1 . 1 . 1 Garrison Access 4 | . . . . . . . . . . . . 2 . . . . . . . . . . . . . 1 . . . . . . . 1 . . Garrison Relay 7 | . . . . . 1 . 2 . 2 . 2 . . . . . . . . . . . . . . . . . . . . . . . . . Phase Generator 1 | . . . . . . . . . . . 1 . . . . . . . . . . . . . . . . . . . . . . . . . Network Hub 1 | . . . . . . . . . . . . . . . . . . . . . . . . . . 1 . . . . . . . . . . Machines Sabotaged . | . . . . . . . . . . . . . . . . . . . . . . . . . . . . . . . . . . . . . Garrisons Compromised 1 | . . . . . . . . . . . . 1 . . . . . . . . . . . . . . . . . . . . . . . . Overloaded Fab Kills . | . . . . . . . . . . . . . . . . . . . . . . . . . . . . . . . . . . . . . Hacking | -11 -10 -10 -9 -9 -9 -8 -8 -8 -8 -7 -7 -7 -7 -7 -7 -6 -6 -6 -6 -6 -5 -5 -5 -5 -5 -5 -4 -4 -4 -3 -3 -3 -2 -2 -1 -1 --------- Run | Scr Mat Min Mat Sto Gar Mat Gar Mat Gar Fac Gar Fac Low Low Zio Pro Fac Low Low Dat Pro Fac Ext Cet Arc Hub Fac Arm Lab Res Qua Sec Res Tes Acc Com Machines Accessed 133 | . 5 1 9 10 2 7 2 6 3 2 2 5 . 1 1 . 2 1 . 4 . 4 19 . . 7 3 6 1 2 8 9 1 4 2 4 Terminals 92 | . 2 . 5 8 2 5 2 4 3 . 2 2 . . . . 1 . . . . 4 19 . . 6 2 4 . . 6 6 1 2 2 4 Fabricators 6 | . . . . . . . . . . 1 . 1 . . . . 1 . . . . . . . . . . 2 . 1 . . . . . . Repair Stations 9 | . 1 . 2 1 . 1 . 1 . . . . . . . . . . . . . . . . . . 1 . . 1 1 . . . . . Recycling Units 3 | . 2 . 1 . . . . . . . . . . . . . . . . . . . . . . . . . . . . . . . . . Scanalyzers 6 | . . . 1 . . . . . . . . . . . . . . . . . . . . . . . . . . . 1 3 . 1 . . Garrison Access 8 | . . . . 1 . 1 . 1 . 1 . 2 . . . . . . . . . . . . . 1 . . . . . . . 1 . . Total Hacks 389 | . 12 1 31 30 5 21 3 13 5 4 2 16 . 1 1 . 14 1 . 31 . 7 58 . . 15 16 15 4 6 23 25 3 13 5 8 Successful 244 | . 8 1 21 19 2 15 2 8 1 2 2 13 . 1 1 . 10 1 . 31 . 4 28 . . 6 13 9 4 4 9 13 1 8 2 5 Failed 145 | . 4 . 10 11 3 6 1 5 4 2 . 3 . . . . 4 . . . . 3 30 . . 9 3 6 . 2 14 12 2 5 3 3 Catastrophic 15 | . . . . . . 1 . 1 . . . . . . . . . . . . . 1 2 . . 2 . 1 . . 3 3 1 . . . Database Lockouts . | . . . . . . . . . . . . . . . . . . . . . . . . . . . . . . . . . . . . . Manual 162 | . 8 . 21 17 . 10 . 8 . 2 . 5 . . . . 4 . . . . 5 32 1 . 9 2 6 . . 17 5 . 5 . 5 Terminals 262 | . 8 . 22 26 5 16 3 8 5 . 2 7 . . . . 7 . . . . 7 58 . . 14 5 11 . . 18 14 3 10 5 8 Fabricators 23 | . . . . . . . . . . 3 . 6 . . . . 7 . . . . . . . . . . 4 . 3 . . . . . . Repair Stations 34 | . 2 . 5 3 . 4 . 4 . . . . . . . . . . . . . . . . . . 11 . . 3 2 . . . . . Recycling Units 3 | . 2 . 1 . . . . . . . . . . . . . . . . . . . . . . . . . . . . . . . . . Scanalyzers 19 | . . . 3 . . . . . . . . . . . . . . . . . . . . . . . . . . . 3 11 . 2 . . Garrison Access 9 | . . . . 1 . 1 . 1 . 1 . 3 . . . . . . . . . . . . . 1 . . . . . . . 1 . . Terminal Hacks 120 | . 2 1 8 11 2 5 2 1 1 . 2 3 . 1 1 . 4 1 . 31 . 1 19 . . 2 1 3 4 . 2 4 1 3 2 2 Record 15 | . . . . . . . . . . . . . . . . . . . . 11 . . . . . . . . 4 . . . . . . . Part Schematic 13 | . . . . . . . . . . . . . . . 1 . 1 . . 11 . . . . . . . . . . . . . . . . Robot Schematic 8 | . . . . . . . . . . . . 1 . . . . . . . 6 . . 1 . . . . . . . . . . . . . Robot Analysis 2 | . . . 2 . . . . . . . . . . . . . . . . . . . . . . . . . . . . . . . . . Prototype ID Bank 5 | . . . . 1 . . . . . . . . . . . . . . . 3 . . 1 . . . . . . . . . . . . . Open Door 21 | . . 1 . 2 . . 1 . . . 1 . . 1 . . . 1 . . . 1 7 . . . . . . . . 2 . . 2 2 Level Access Points 1 | . . . . . . . . . . . . . . . . . . . . . . . . . . 1 . . . . . . . . . . Branch Access Points 3 | . . . . . . . . . . . . 1 . . . . 1 . . . . . . . . . . . . . . . 1 . . . Emergency Access Points 3 | . . . . 1 1 . 1 . . . . . . . . . . . . . . . . . . . . . . . . . . . . . Terminal Index 6 | . 1 . 1 1 . 1 . . . . . 1 . . . . 1 . . . . . . . . . . . . . . . . . . . Garrison Index 1 | . . . . 1 . . . . . . . . . . . . . . . . . . . . . . . . . . . . . . . . Alert Level 7 | . . . 2 3 . . . . . . . . . . . . . . . . . . 2 . . . . . . . . . . . . . Unreport Threat 9 | . . . . 2 . 2 . 1 . . . . . . . . . . . . . . 2 . . . . . . . 1 . . 1 . . Locate Traps 1 | . . . . . . . . . . . . . . . . . . . . . . . . . . . . . . . . . . 1 . . Recall Investigation 3 | . . . . . . . . . . . . . . . . . . . . . . . 3 . . . . . . . . . . . . . Hauler Manifests 8 | . 1 . 1 . . 1 . . . . . . . . . . 1 . . . . . 2 . . . 1 . . . . . . 1 . . Zone Layout 11 | . . . 2 . . 1 . . . . . . . . . . . . . . . . 1 . . 1 . 3 . . 1 2 . . . . Garrison Registry 3 | . . . . . 1 . . . 1 . 1 . . . . . . . . . . . . . . . . . . . . . . . . . Fabricator Hacks 18 | . . . . . . . . . . 1 . 6 . . . . 5 . . . . . . . . . . 4 . 2 . . . . . . Network Status 1 | . . . . . . . . . . 1 . . . . . . . . . . . . . . . . . . . . . . . . . . Load Schematic 8 | . . . . . . . . . . . . 3 . . . . 2 . . . . . . . . . . 2 . 1 . . . . . . Build 9 | . . . . . . . . . . . . 3 . . . . 3 . . . . . . . . . . 2 . 1 . . . . . . Repair Station Hacks 30 | . 2 . 4 2 . 4 . 4 . . . . . . . . . . . . . . . . . . 10 . . 2 2 . . . . . Scan Component 15 | . 1 . 2 1 . 2 . 2 . . . . . . . . . . . . . . . . . . 5 . . 1 1 . . . . . Repair 15 | . 1 . 2 1 . 2 . 2 . . . . . . . . . . . . . . . . . . 5 . . 1 1 . . . . . Recycling Unit Hacks . | . . . . . . . . . . . . . . . . . . . . . . . . . . . . . . . . . . . . . Scanalyzer 12 | . . . 3 . . . . . . . . . . . . . . . . . . . . . . . . . . . . 7 . 2 . . Insert Component 10 | . . . 1 . . . . . . . . . . . . . . . . . . . . . . . . . . . . 7 . 2 . . Analyze 2 | . . . 2 . . . . . . . . . . . . . . . . . . . . . . . . . . . . . . . . . Garrison Access Hacks 9 | . . . . 1 . 1 . 1 . 1 . 3 . . . . . . . . . . . . . 1 . . . . . . . 1 . . Unlock Access 5 | . . . . 1 . 1 . 1 . 1 . . . . . . . . . . . . . . . . . . . . . . . 1 . . Seal Access 3 | . . . . . . . . . . . . 2 . . . . . . . . . . . . . 1 . . . . . . . . . . Coupler Status 1 | . . . . . . . . . . . . 1 . . . . . . . . . . . . . . . . . . . . . . . . Unauthorized Hacks 55 | . 4 . 6 5 . 5 . 2 . . . 1 . . . . 1 . . . . 3 9 . . 3 2 2 . . 5 2 . 2 . 3 Terminals 52 | . 2 . 5 5 . 5 . 2 . . . 1 . . . . 1 . . . . 3 9 . . 3 2 2 . . 5 2 . 2 . 3 Track 1 | . . . . . . . . . . . . . . . . . . . . . . . . . . . . . . . . . . . . 1 Assimilate 2 | . . . . . . . . . . . . . . . . . . . . . . . . . . . . . . . 2 . . . . . Botnet 49 | . 2 . 5 5 . 5 . 2 . . . 1 . . . . 1 . . . . 3 9 . . 3 2 2 . . 3 2 . 2 . 2 Fabricators . | . . . . . . . . . . . . . . . . . . . . . . . . . . . . . . . . . . . . . Repair Stations . | . . . . . . . . . . . . . . . . . . . . . . . . . . . . . . . . . . . . . Recycling Units 3 | . 2 . 1 . . . . . . . . . . . . . . . . . . . . . . . . . . . . . . . . . Tunnel 3 | . 2 . 1 . . . . . . . . . . . . . . . . . . . . . . . . . . . . . . . . . Scanalyzers . | . . . . . . . . . . . . . . . . . . . . . . . . . . . . . . . . . . . . . Garrison Access . | . . . . . . . . . . . . . . . . . . . . . . . . . . . . . . . . . . . . . Data Cores Recovered 5 | . . . . . . . . . . . . . . . . . . . . . . 1 1 . . 1 . . . . 1 1 . . . . Used 4 | . . . . . . . . . . . . . . . . . . . . . . . 1 . . 1 . . . . 1 1 . . . . Hacking Detections 88 | . 3 . 8 8 2 6 . 5 3 1 1 2 . . . . 2 . . . . 3 13 1 . 6 2 3 . 1 7 5 1 3 . 2 Full Trace Events 11 | . . . . 1 1 . . 1 1 . . . . . . . . . . . . . 3 . . . . 1 . 1 1 1 . . . . Feedback Events . | . . . . . . . . . . . . . . . . . . . . . . . . . . . . . . . . . . . . . Feedback Blocked . | . . . . . . . . . . . . . . . . . . . . . . . . . . . . . . . . . . . . . Robot Schematics Acquired 9 | . . . . . . . . . . . . 1 . . . . . . . 6 . . 1 . . . . . . . . 1 . . . . Robots Built 21 | . . . . . . . . . . . . 9 . . . . 9 . . . . . . . . . . 3 . . . . . . . . Authchips 7 | . . . . . . . . . . . . 3 . . . . 2 . . . . . . . . . . 2 . . . . . . . . Time 700 | . . . . . . . . . . . . 114 . . . . 384 . . . . . . . . . . 202 . . . . . . . . Total Robot Build Rating 75 | . . . . . . . . . . . . 27 . . . . 33 . . . . . . . . . . 15 . . . . . . . . Part Schematics Acquired 20 | . . . 1 . . . . . . . . . . . 1 . 1 . . 11 . . . . . . . . . . . 4 . 2 . . Parts Built 1 | . . . . . . . . . . . . . . . . . . . . . . . . . . . . . . 1 . . . . . . Authchips . | . . . . . . . . . . . . . . . . . . . . . . . . . . . . . . . . . . . . . Time 58 | . . . . . . . . . . . . . . . . . . . . . . . . . . . . . . 58 . . . . . . Total Part Build Rating 7 | . . . . . . . . . . . . . . . . . . . . . . . . . . . . . . 7 . . . . . . Parts Repaired 15 | . 1 . 2 1 . 2 . 2 . . . . . . . . . . . . . . . . . . 5 . . 1 1 . . . . . Time 696 | . 26 . 58 32 . 64 . 112 . . . . . . . . . . . . . . . . . . 302 . . 13 89 . . . . . Parts Recycled . | . . . . . . . . . . . . . . . . . . . . . . . . . . . . . . . . . . . . . Recycled Matter . | . . . . . . . . . . . . . . . . . . . . . . . . . . . . . . . . . . . . . Retrieved Matter . | . . . . . . . . . . . . . . . . . . . . . . . . . . . . . . . . . . . . . Retrieved Components . | . . . . . . . . . . . . . . . . . . . . . . . . . . . . . . . . . . . . . Parts Scanalyzed 1 | . . . 1 . . . . . . . . . . . . . . . . . . . . . . . . . . . . . . . . . Part Schematics Acquired 1 | . . . 1 . . . . . . . . . . . . . . . . . . . . . . . . . . . . . . . . . Parts Damaged . | . . . . . . . . . . . . . . . . . . . . . . . . . . . . . . . . . . . . . Bothacking | -11 -10 -10 -9 -9 -9 -8 -8 -8 -8 -7 -7 -7 -7 -7 -7 -6 -6 -6 -6 -6 -5 -5 -5 -5 -5 -5 -4 -4 -4 -3 -3 -3 -2 -2 -1 -1 ------------ Run | Scr Mat Min Mat Sto Gar Mat Gar Mat Gar Fac Gar Fac Low Low Zio Pro Fac Low Low Dat Pro Fac Ext Cet Arc Hub Fac Arm Lab Res Qua Sec Res Tes Acc Com Used RIF Installer 5 | . . . . . 1 . 1 . 2 . 1 . . . . . . . . . . . . . . . . . . . . . . . . . Coupler Efficiency 1 | . . . . . . . . . . . 1 . . . . . . . . . . . . . . . . . . . . . . . . . Signal Jammer 1 | . . . . . . . . . 1 . . . . . . . . . . . . . . . . . . . . . . . . . . . Watcher Feeds 1 | . . . . . . . . . 1 . . . . . . . . . . . . . . . . . . . . . . . . . . . Patrol Navigation 1 | . . . . . . . 1 . . . . . . . . . . . . . . . . . . . . . . . . . . . . . Robots Hacked 11 | . . . . . . . . . . . 7 2 . . . . . . . . . . . . . . . 2 . . . . . . . . Non-combat 1 | . . . . . . . . . . . . 1 . . . . . . . . . . . . . . . . . . . . . . . . Combat 10 | . . . . . . . . . . . 7 1 . . . . . . . . . . . . . . . 2 . . . . . . . . Robot Hacks Applied 12 | . . . . . . . . . . . 7 3 . . . . . . . . . . . . . . . 2 . . . . . . . . parse_system 1 | . . . . . . . . . . . . 1 . . . . . . . . . . . . . . . . . . . . . . . . overwrite_iff 2 | . . . . . . . . . . . 1 . . . . . . . . . . . . . . . . 1 . . . . . . . . formatsys_high 9 | . . . . . . . . . . . 6 2 . . . . . . . . . . . . . . . 1 . . . . . . . . Relay Couplers Released 39 | . . . . . 5 . 8 . 8 . 7 3 . . . . . . . . . . . . . 2 . . . 4 . . . 2 . . Machine Destruction 35 | . . . . . 5 . 8 . 8 . 7 3 . . . . . . . . . . . . . 2 . . . . . . . 2 . . Programmers 4 | . . . . . . . . . . . . . . . . . . . . . . . . . . . . . . 4 . . . . . . Attached 7 | . . . . . . . . . . . 3 3 . . . . . . . . . . . . . . . 1 . . . . . . . . Fabnet Peak Effective % . | . . . . . . . . . . . . . . . . . . . . . . . . . . . . . . . . . . . . . Robots Rewired 26 | . . . . . . . . . 3 . 3 . . . . . . . . . . . 4 . . . . 16 . . . . . . . . Allies Hacked 7 | . . . . . . . . . . . . 3 . . . . 1 . . . . . . . . . . 2 . . 1 . . . . . Hacks Repelled . | . . . . . . . . . . . . . . . . . . . . . . . . . . . . . . . . . . . . . Allies | -11 -10 -10 -9 -9 -9 -8 -8 -8 -8 -7 -7 -7 -7 -7 -7 -6 -6 -6 -6 -6 -5 -5 -5 -5 -5 -5 -4 -4 -4 -3 -3 -3 -2 -2 -1 -1 -------- Run | Scr Mat Min Mat Sto Gar Mat Gar Mat Gar Fac Gar Fac Low Low Zio Pro Fac Low Low Dat Pro Fac Ext Cet Arc Hub Fac Arm Lab Res Qua Sec Res Tes Acc Com Total Allies 92 | . . . . 12 . . 2 . 3 . 11 11 . . . . 12 . . . . . 11 5 . . . 21 . 3 1 . . . . . Largest Group 12 | . . . . 12 5 . 2 . 3 . 2 9 2 1 . . 9 1 1 . . . 7 9 4 1 . 7 7 3 1 . . . . . Highest-Rated Group 657 | . . . . 150 68 . 56 . 120 . 86 199 199 90 . . 183 29 29 . . . 327 657 314 96 . 329 329 138 45 . . . . . Highest-Rated Ally 159 | . . . . 31 28 . 31 . 40 . 43 109 109 90 . . 31 29 29 . . . 159 159 96 96 . 65 47 46 45 . . . . . Total Orders 27 | . . . . . . . . . . . 2 1 . 1 5 . . . 2 1 . . . . . . 2 6 . . 2 4 . 1 . . STAY 6 | . . . . . . . . . . . . . . . 1 . . . . 1 . . . . . . 1 2 . . . 1 . . . . ROAM 1 | . . . . . . . . . . . . . . . . . . . . . . . . . . . . 1 . . . . . . . . FOLLOW 3 | . . . . . . . . . . . . . . . . . . . . . . . . . . . 1 2 . . . . . . . . RETURN 17 | . . . . . . . . . . . 2 1 . 1 4 . . . 2 . . . . . . . . 1 . . 2 3 . 1 . . Ally Attacks 627 | . . . . 39 46 . 15 . 35 . 12 100 8 6 . . 79 . 9 . . . 88 123 17 14 . 36 . . . . . . . . Total Damage 12816 | . . . . 390 396 . 201 . 882 . 292 1588 438 260 . . 1154 . 153 . . . 1773 3365 688 427 . 809 . . . . . . . . Kills 124 | . . . . 7 9 . 3 . 15 . 3 17 5 2 . . 7 . . . . . 18 25 3 4 . 6 . . . . . . . . Allies Corrupted 4 | . . . . . . . . . . . . . . . . . . . . . . . . . . 1 1 2 . . . . . . . . Allies Melted . | . . . . . . . . . . . . . . . . . . . . . . . . . . . . . . . . . . . . . Intel | -11 -10 -10 -9 -9 -9 -8 -8 -8 -8 -7 -7 -7 -7 -7 -7 -6 -6 -6 -6 -6 -5 -5 -5 -5 -5 -5 -4 -4 -4 -3 -3 -3 -2 -2 -1 -1 ------- Run | Scr Mat Min Mat Sto Gar Mat Gar Mat Gar Fac Gar Fac Low Low Zio Pro Fac Low Low Dat Pro Fac Ext Cet Arc Hub Fac Arm Lab Res Qua Sec Res Tes Acc Com Robot Analysis Total 133 | . . . 2 . . . . . . . . . . . . . . . . 131 . . . . . . . . . . . . . . . . Derelict Logs Recovered 8 | . . 2 . . . . . . . . . . 3 1 . 1 . . 1 . . . . . . . . . . . . . . . . . Drone Launches 52 | . . . . . . . . . . 1 1 6 . 2 3 2 1 . 2 1 2 . . 1 . 2 6 6 . 4 4 4 2 2 . . Drone Recoveries 41 | . . . . . . . . . . . 2 5 . 2 4 . 1 . 2 . 1 . . 1 . 3 4 5 . 1 5 3 1 1 . . Exploration | -11 -10 -10 -9 -9 -9 -8 -8 -8 -8 -7 -7 -7 -7 -7 -7 -6 -6 -6 -6 -6 -5 -5 -5 -5 -5 -5 -4 -4 -4 -3 -3 -3 -2 -2 -1 -1 ------------- Run | Scr Mat Min Mat Sto Gar Mat Gar Mat Gar Fac Gar Fac Low Low Zio Pro Fac Low Low Dat Pro Fac Ext Cet Arc Hub Fac Arm Lab Res Qua Sec Res Tes Acc Com Turns Passed 38842 | 61 927 970 1501 1408 1290 1190 2108 570 1463 171 2172 1900 947 1429 743 778 1296 512 661 460 913 286 1411 585 390 897 1280 2241 667 972 1500 2057 518 1082 553 933 Spaces Moved 14546 | 38 249 374 583 494 511 580 909 240 558 69 618 682 342 510 250 280 358 269 302 151 398 104 578 183 120 300 268 493 200 379 431 973 246 484 311 711 Core 9 | 8 . . . . . . . . . . . . . . . . . . . . . . . . . . . 1 . . . . . . . . Treads 5587 | 30 249 374 18 1 . . . 21 3 . 390 175 342 510 250 280 297 . . . . . . . 14 . . 288 200 379 431 660 246 407 . 22 Legs 768 | . . . . . . . . . . . . . . . . . . . . . . . . . . . . . . . . . . 45 299 424 Wheels 7560 | . . . 565 493 511 580 909 219 555 69 228 507 . . . . 61 269 302 151 398 104 578 183 106 300 268 204 . . . . . . . . Hover . | . . . . . . . . . . . . . . . . . . . . . . . . . . . . . . . . . . . . . Flight . | . . . . . . . . . . . . . . . . . . . . . . . . . . . . . . . . . . . . . Fastest Speed 50 | 50 160 240 155 215 210 150 150 150 150 195 195 195 240 240 240 240 185 185 185 150 165 210 195 195 210 195 135 210 250 160 160 160 160 160 160 100 Average Speed 198 | 136 268 240 202 215 213 150 150 157 150 195 262 206 240 240 240 250 241 185 185 173 188 210 209 209 225 208 211 292 250 160 194 160 160 160 160 104 Slowest Speed 2850 | 160 320 240 320 320 215 150 150 240 240 195 320 240 240 240 240 320 253 185 185 205 195 210 210 210 395 210 225 2850 250 160 250 160 160 240 160 215 Overloaded Moves . | . . . . . . . . . . . . . . . . . . . . . . . . . . . . . . . . . . . . . Propulsion Burnouts . | . . . . . . . . . . . . . . . . . . . . . . . . . . . . . . . . . . . . . Robots Hopped . | . . . . . . . . . . . . . . . . . . . . . . . . . . . . . . . . . . . . . Cave-ins Triggered . | . . . . . . . . . . . . . . . . . . . . . . . . . . . . . . . . . . . . . Teleports 3 | . . . . . . . . . . . . . . . . . . . . . . . . . . . . . . . . 1 . 2 . . Spacefolds 12 | . . . . . . . . . . . . . . . . . . . . . . . . . . . . . . . . 3 . 3 3 3 Microwarps 50 | . . . . . . . . . . . . . . . . . . . . . . . . . . . . . . . . 22 . 4 1 23 Exploration Rate (%) 46 | 4 53 54 60 73 59 60 88 29 82 3 68 24 59 50 14 45 9 57 44 80 52 5 83 60 78 37 10 54 96 17 69 56 7 56 10 22 Regions Visited 36 Branch Regions 20 Pre-discovered Areas 26 | . 2 . 1 . . . . . . . . . . . . . . . . 23 . . . . . . . . . . . . . . . . Known Exits Taken 17 | . . . 1 1 . 1 . 1 . 1 . 1 1 1 . 1 1 1 1 1 1 . . . 1 1 . . . . . . 1 . . . Unknown Exits Taken 15 | 1 1 1 . . . . . . . . . . . . 1 . . . . . . 1 1 1 . . 1 1 1 1 1 1 . 1 1 . Scrap Searched 17 | . . . . . . . . . . . . . 2 3 2 2 . 2 3 . 3 . . . . . . . . . . . . . . . Spaces Dug 119 | . . . . . . 4 . . 6 . 1 7 3 2 1 1 . . 2 . 4 3 . . . 3 7 19 . 16 16 10 3 5 2 4 Terrain Destroyed 747 | . . . 9 . . 5 . 2 7 1 68 94 5 29 4 4 . . 7 . 10 19 . . . 190 21 42 1 41 59 53 10 37 11 18 Melee 1 | . . . . . . 1 . . . . . . . . . . . . . . . . . . . . . . . . . . . . . . Projectile 346 | . . . . . . 4 . 2 7 1 10 15 5 12 4 4 . . 7 . 10 3 . . . 16 21 42 1 41 59 43 10 14 8 7 AOE 363 | . . . 9 . . . . . . . 58 79 . 17 . . . . . . . 16 . . . 174 . . . . . 10 . . . . Terrain Rammed . | . . . . . . . . . . . . . . . . . . . . . . . . . . . . . . . . . . . . . Walls Destroyed . | . . . . . . . . . . . . . . . . . . . . . . . . . . . . . . . . . . . . . Machines Disabled . | . . . . . . . . . . . . . . . . . . . . . . . . . . . . . . . . . . . . . Actions | -11 -10 -10 -9 -9 -9 -8 -8 -8 -8 -7 -7 -7 -7 -7 -7 -6 -6 -6 -6 -6 -5 -5 -5 -5 -5 -5 -4 -4 -4 -3 -3 -3 -2 -2 -1 -1 --------- Run | Scr Mat Min Mat Sto Gar Mat Gar Mat Gar Fac Gar Fac Low Low Zio Pro Fac Low Low Dat Pro Fac Ext Cet Arc Hub Fac Arm Lab Res Qua Sec Res Tes Acc Com Total 22017 | 44 405 412 818 714 630 781 1377 396 1034 89 990 1087 444 673 374 330 742 279 363 278 502 149 731 338 214 466 894 1011 286 659 909 1330 369 754 361 784 Wait 4795 | . 81 11 139 104 51 92 232 129 359 5 197 305 55 127 93 29 335 6 32 75 51 20 57 91 63 101 508 202 15 196 327 406 25 122 24 130 Move 13947 | 37 248 373 582 493 509 579 907 239 556 68 617 681 341 509 249 279 357 268 301 150 397 103 577 182 119 300 267 492 199 378 430 684 245 458 302 471 Hop . | . . . . . . . . . . . . . . . . . . . . . . . . . . . . . . . . . . . . . Pick Up 331 | 1 14 2 18 11 6 14 14 4 5 2 13 7 9 . 4 . 10 1 . 1 4 2 11 11 1 4 35 30 4 29 13 22 6 8 3 12 Fast Attach 155 | 6 5 2 6 9 . 3 5 1 . . 1 1 3 . 4 . 1 . . 3 1 . . 2 9 1 4 29 10 1 10 7 . 14 . 17 Attach 153 | . 1 1 1 1 . 4 6 1 1 2 7 7 3 1 1 2 5 . . 6 . 2 1 1 . 3 10 26 3 5 5 14 7 11 3 12 Detach 21 | . . . 1 . . . . . . . 1 . 2 . . . . . . 1 . . . . . . . 2 5 . 2 1 . 4 . 2 Swap 245 | . 2 1 12 7 4 8 12 1 6 3 18 16 5 4 4 2 8 . 6 8 8 2 3 7 3 4 13 20 6 9 13 19 . 5 . 6 Drop 262 | . 3 3 15 22 8 14 15 3 5 1 5 5 8 . 6 . 5 1 . 1 . . 10 18 8 5 2 20 7 2 20 17 2 17 . 14 Fire 1892 | . 48 15 42 64 42 62 144 18 84 8 103 53 18 32 13 18 20 3 24 27 41 20 22 26 11 48 55 165 37 39 89 158 84 110 29 120 Melee 11 | . . . . . 2 3 . . . . . . . . . . . . . 6 . . . . . . . . . . . . . . . . Ram . | . . . . . . . . . . . . . . . . . . . . . . . . . . . . . . . . . . . . . Kick . | . . . . . . . . . . . . . . . . . . . . . . . . . . . . . . . . . . . . . Crush 26 | . 3 4 2 3 . 2 2 . . . . 2 . . . . 1 . . . . . . . . . . . . . . 2 . 5 . . Escape Stasis 98 | . . . . . 8 . 40 . 8 . 18 8 . . . . . . . . . . 16 . . . . . . . . . . . . . Rewire 81 | . . . . . . . . . 10 . 10 2 . . . . . . . . . . 34 . . . . 25 . . . . . . . . Trap . | . . . . . . . . . . . . . . . . . . . . . . . . . . . . . . . . . . . . . Miscellaneous . | . . . . . . . . . . . . . . . . . . . . . . . . . . . . . . . . . . . . . Route ------- -11/Scrapyard -10/Materials (discovered 3 exits: *Mat x2 / *Min) -10/Mines (discovered 2 exits: *Mat x2) -9/Materials (discovered 3 exits: *Mat / [*Min] / *Sto) -9/Storage -9/Garrison (discovered 3 exits: *Mat x3) -8/Materials (discovered 3 exits: *Fac x2 / Gar) -8/Garrison (discovered 3 exits: *Mat x3) -8/Materials -8/Garrison (discovered 4 exits: *Fac x3 / [*Mat]) -7/Factory -7/Garrison (discovered 4 exits: *Fac x3 / *Fac) -7/Factory (discovered 2 exits: *Low x2) -7/Lower Caves -7/Lower Caves -7/Zion -6/Proximity Caves -6/Factory (discovered 4 exits: *Fac x2 / *Low x2) -6/Lower Caves -6/Lower Caves -6/Data Miner -5/Proximity Caves -5/Factory -5/Extension (discovered 2 exits: *Fac / *Cet) -5/Cetus (discovered 2 exits: *Fac / [*Arc]) -5/Archives (discovered 2 exits: *Hub x2) -5/Hub_04(d) (discovered 4 exits: *Fac x4) -4/Factory -4/Armory -4/Lab -3/Research -3/Quarantine -3/Section 7 -2/Research (discovered 2 exits: *Tes x2) -2/Testing -1/Access -1/Command To Epsilon Eridani History --------- Turn | Location | Event 11 | -11/Scrapyard | Discovered new exit (range 14) 62 | -11/Scrapyard | Entered Materials 153 | -10/Materials | Discovered new exit (range 15) 309 | -10/Materials | Build established: Mutant 761 | -10/Materials | Discovered new exit (range 10) 842 | -10/Materials | Repaired Lgt. Treads 865 | -10/Materials | Discovered new exit (range 15) 989 | -10/Materials | Entered Mines 1001 | -10/Mines | Discovered new exit (range 5) 1114 | -10/Mines | Discovered new exit (range 9) 1205 | -10/Mines | Learned Materials non-interactive machine intel 1237 | -10/Mines | Deemed a non-threat by the Exiles lab entrance 1364 | -10/Mines | Found the Drone Emporium 1375 | -10/Mines | Found Prototype Device 1375 | -10/Mines | Identified Sensor Drone Bay 1481 | -10/Mines | Found a damaged Exp. Sensor Array with a note attached 1485 | -10/Mines | Found Prototype Device 1959 | -10/Mines | Entered Materials 1959 | -9/Materials | Evolved 2 slots: Propulsion x1, Utility x1 1960 | -9/Materials | Identified exit to Storage 1961 | -9/Materials | Loaded intel: 36 non-interactive machine locations 2017 | -9/Materials | Repaired Lgt. Treads 2192 | -9/Materials | Repaired Particle Cannon 2334 | -9/Materials | Discovered new exit (range 14) 2404 | -9/Materials | Identified Exp. Sensor Array 3012 | -9/Materials | Discovered new exit (range 13) 3460 | -9/Materials | Entered Storage 3592 | -9/Storage | Repaired Cooling System 4262 | -9/Storage | Found Prototype Protection 4262 | -9/Storage | Identified Lgt. Regenerative Plating 4441 | -9/Storage | Assisted by bots powering up and referring to "LRC-V3" 4729 | -9/Storage | Met a pair of Derelict thieves 4764 | -9/Storage | Build established: Commander-Mutant 4864 | -9/Storage | Identified exit to Garrison 4868 | -9/Storage | Entered Garrison 4868 | -9/Garrison | Accompanied by 5 allies 4904 | -9/Garrison | Triggered checkpoint 5106 | -9/Garrison | Triggered checkpoint 5270 | -9/Garrison | Discovered new exit (range 10) 5270 | -9/Garrison | Discovered new exit (range 61) 5270 | -9/Garrison | Discovered new exit (range 71) 5376 | -9/Garrison | Triggered checkpoint 5408 | -9/Garrison | Build established: Mutant 5437 | -9/Garrison | Garrison Relay disabled 5778 | -9/Garrison | Triggered checkpoint 5929 | -9/Garrison | Installed Relay Interface Framework 6158 | -9/Garrison | Entered Materials 6158 | -8/Materials | Evolved 2 slots: Propulsion x1, Utility x1 6516 | -8/Materials | Discovered new exit (range 15) 6734 | -8/Materials | Repaired Cooling System 6776 | -8/Materials | Repaired Arm. Wheel 7219 | -8/Materials | Discovered new exit (range 16) 7298 | -8/Materials | Garrison activated, responded to threat 7343 | -8/Materials | Identified exit to Garrison 7348 | -8/Materials | Entered Garrison 7394 | -8/Garrison | Expanded RIF knowledge: Patrol Navigation 7436 | -8/Garrison | Rescued a captive Derelict 7438 | -8/Garrison | Rescued a captive Derelict 7478 | -8/Garrison | Triggered checkpoint 7736 | -8/Garrison | Triggered checkpoint 7777 | -8/Garrison | Discovered new exit (range 8) 7785 | -8/Garrison | Build established: Scavenger-Mutant 7992 | -8/Garrison | Spotted B-75 Beast 7992 | -8/Garrison | Spotted B-75 Beast 8092 | -8/Garrison | Triggered checkpoint 8104 | -8/Garrison | Garrison Relay disabled 8232 | -8/Garrison | Triggered checkpoint 8244 | -8/Garrison | Garrison Relay disabled 8319 | -8/Garrison | Discovered new exit (range 10) 8601 | -8/Garrison | Build established: Mutant 8909 | -8/Garrison | Destroyed B-75 Beast 8921 | -8/Garrison | Destroyed B-75 Beast 9036 | -8/Garrison | Triggered checkpoint 9196 | -8/Garrison | Triggered checkpoint 9440 | -8/Garrison | Discovered new exit (range 10) 9456 | -8/Garrison | Entered Materials 9717 | -8/Materials | Repaired Lyr. Medium Armor Plating 9781 | -8/Materials | Repaired Imp. Heavy Treads 10025 | -8/Materials | Identified exit to Garrison 10026 | -8/Materials | Entered Garrison 10126 | -8/Garrison | Triggered checkpoint 10216 | -8/Garrison | Triggered checkpoint 10239 | -8/Garrison | Discovered new exit (range 5) 10428 | -8/Garrison | Triggered checkpoint 10496 | -8/Garrison | Triggered checkpoint 10521 | -8/Garrison | Garrison Relay disabled 10700 | -8/Garrison | Discovered new exit (range 14) 10724 | -8/Garrison | Discovered new exit (range 31) 10724 | -8/Garrison | Discovered new exit (range 90) 10724 | -8/Garrison | Discovered new exit (range 7) 10724 | -8/Garrison | Discovered new exit (range 66) 10806 | -8/Garrison | Triggered checkpoint 10943 | -8/Garrison | Expanded RIF knowledge: Watcher Feeds 10988 | -8/Garrison | Garrison Relay disabled 11057 | -8/Garrison | Triggered checkpoint 11361 | -8/Garrison | Expanded RIF knowledge: Signal Jamming 11406 | -8/Garrison | Triggered checkpoint 11489 | -8/Garrison | Entered Factory 11489 | -7/Factory | Evolved 2 slots: Utility x2 11606 | -7/Factory | Identified exit to Garrison 11614 | -7/Factory | Garrison activated, responded to threat 11660 | -7/Factory | Entered Garrison 11660 | -7/Garrison | Accompanied by 1 ally 11783 | -7/Garrison | Expanded RIF knowledge: Coupler Efficiency 11798 | -7/Garrison | Build established: Hauler-Mutant 11893 | -7/Garrison | Phase Generator disabled 11904 | -7/Garrison | Rescued a captive Derelict 11946 | -7/Garrison | P-60 Hacker assimilated allied 5C-0UH(l) 12084 | -7/Garrison | Garrison Relay disabled 12102 | -7/Garrison | Triggered checkpoint 12318 | -7/Garrison | Triggered checkpoint 12507 | -7/Garrison | Discovered new exit (range 12) 12507 | -7/Garrison | Discovered new exit (range 64) 12507 | -7/Garrison | Discovered new exit (range 44) 12507 | -7/Garrison | Discovered new exit (range 19) 12576 | -7/Garrison | Triggered checkpoint 12635 | -7/Garrison | Garrison Relay disabled 13116 | -7/Garrison | Triggered checkpoint 13178 | -7/Garrison | Triggered checkpoint 13470 | -7/Garrison | Triggered checkpoint 13832 | -7/Garrison | Entered Factory 13832 | -7/Factory | Accompanied by 3 allies 14060 | -7/Factory | Assembled infested ambush trap array 14229 | -7/Factory | Fabricated G-47 Trooper (x3) 14268 | -7/Factory | Fabricated G-47 Trooper (x3) 14307 | -7/Factory | Fabricated G-47 Trooper (x3) 15043 | -7/Factory | Identified exit to Lower Caves 15045 | -7/Factory | Cargo convoy interrupted 15732 | -7/Factory | Entered Lower Caves 15732 | -7/Lower Caves | Accompanied by 3 allies 15821 | -7/Lower Caves | Found Prototype Processor 15822 | -7/Lower Caves | Identified Exp. Terrain Scan Processor 16181 | -7/Lower Caves | Learned Factory emergency access door positions 16504 | -7/Lower Caves | Learned location of 1 exit from Factory 16574 | -7/Lower Caves | Identified exit to Lower Caves 16679 | -7/Lower Caves | Entered another Lower Caves area 16679 | -7/Lower Caves | Accompanied by 2 allies 17662 | -7/Lower Caves | Attracted the attention of an 0b10 checkpoint 17738 | -7/Lower Caves | Encountered a Warlord checkpoint 18011 | -7/Lower Caves | Learned Factory stockpile data 18011 | -7/Lower Caves | Discovered new exit (range 6) 18032 | -7/Lower Caves | Identified exit to Zion 18108 | -7/Lower Caves | Entered Zion 18108 | -7/Zion | Accompanied by 1 ally 18272 | -7/Zion | System corruption cleaned by Quarantine Array 18557 | -7/Zion | RIF detected upon attempting to enter Zion 18557 | -7/Zion | Attacked by Zionites 18557 | -7/Zion | Spotted VY-H5H(B) 18557 | -7/Zion | Spotted BA-577(B) 18571 | -7/Zion | Destroyed BA-577(B) 18574 | -7/Zion | Destroyed VY-H5H(B) 18790 | -7/Zion | Discovered new exit (range 15) 18851 | -7/Zion | Entered Proximity Caves 19439 | -6/Proximity Caves | Learned Factory stockpile data 19543 | -6/Proximity Caves | Discovered new exit (range 4) 19568 | -6/Proximity Caves | Identified exit to Factory 19629 | -6/Proximity Caves | Entered Factory 19629 | -6/Factory | Accompanied by 1 ally 19629 | -6/Factory | Evolved 2 slots: Utility x1, Weapon x1 19630 | -6/Factory | Identified exit to Factory 19929 | -6/Factory | Build established: Hauler-Gunner 19964 | -6/Factory | Fabricated G-50 Soldier (x3) 20081 | -6/Factory | Fabricated G-47 Trooper (x3) 20197 | -6/Factory | Fabricated G-47 Trooper (x3) 20235 | -6/Factory | Identified exit to Lower Caves 20434 | -6/Factory | Allied Derelicts emerged from ambush trap array 20563 | -6/Factory | Discovered exit to Factory (range 5) 20925 | -6/Factory | Entered Lower Caves 20925 | -6/Lower Caves | Accompanied by 2 allies 21424 | -6/Lower Caves | Discovered new exit (range 5) 21434 | -6/Lower Caves | Identified exit to Lower Caves 21437 | -6/Lower Caves | Entered another Lower Caves area 21437 | -6/Lower Caves | Accompanied by 2 allies 21789 | -6/Lower Caves | Learned Factory garrison access intel 22015 | -6/Lower Caves | Discovered new exit (range 16) 22045 | -6/Lower Caves | Identified exit to Data Miner 22098 | -6/Lower Caves | Entered Data Miner 22098 | -6/Data Miner | Accompanied by 1 ally 22098 | -6/Data Miner | Discovered new exit (range 7) 22153 | -6/Data Miner | Identified exit to Proximity Caves 22180 | -6/Data Miner | Build established: Hauler-Mutant 22185 | -6/Data Miner | Met Data Miner 22220 | -6/Data Miner | Learned location of Section 7 (-3) 22220 | -6/Data Miner | Acquired the access code to Warlord's prototype stash 22249 | -6/Data Miner | Received God Mode back door access code from Data Miner 22264 | -6/Data Miner | Interfaced with the Data Conduit 22423 | -6/Data Miner | Lost 5 parts (1p2n2u) 22558 | -6/Data Miner | Entered Proximity Caves 22558 | -5/Proximity Caves | Accompanied by 1 ally 22864 | -5/Proximity Caves | Found Imp. Powered Armor 23048 | -5/Proximity Caves | Build established: Scavenger-Gunner 23376 | -5/Proximity Caves | Build established: Scavenger-Mutant 23435 | -5/Proximity Caves | Discovered exit to Factory (range 13) 23444 | -5/Proximity Caves | Attracted the attention of an 0b10 checkpoint 23471 | -5/Proximity Caves | Entered Factory 23471 | -5/Factory | Accompanied by 1 ally 23471 | -5/Factory | Evolved 2 slots: Power x1, Utility x1 23473 | -5/Factory | Loaded intel: 294 machine locations 23474 | -5/Factory | Loaded intel: 4 garrison access locations 23734 | -5/Factory | Discovered new exit (range 6) 23757 | -5/Factory | Entered Extension 23757 | -5/Extension | Accompanied by 1 ally 23758 | -5/Extension | Loaded intel: 43 machine locations 23823 | -5/Extension | Rescued A7 23947 | -5/Extension | Build established: Scavenger-Gunner 23957 | -5/Extension | Rescued a captive Derelict 24119 | -5/Extension | Rescued a captive Derelict 24616 | -5/Extension | Spotted B-75 Beast 24626 | -5/Extension | Allies destroyed B-75 Beast 24626 | -5/Extension | Spotted B-75 Beast 24640 | -5/Extension | Allies destroyed B-75 Beast 24758 | -5/Extension | Rescued a captive Derelict 24881 | -5/Extension | Rescued a captive Derelict 24924 | -5/Extension | Rescued a captive Derelict 25061 | -5/Extension | Rescued a captive Derelict 25136 | -5/Extension | Discovered new exit (range 10) 25138 | -5/Extension | Discovered new exit (range 6) 25154 | -5/Extension | Disrupted transfer network 25168 | -5/Extension | Entered Cetus 25168 | -5/Cetus | Accompanied by 6 allies (A7) 25169 | -5/Cetus | Loaded intel: 24 machine locations 25173 | -5/Cetus | Acquired a Cetus Manufacturing Module code from A7 25203 | -5/Cetus | Spotted Cetus Guard 25204 | -5/Cetus | Spotted Cetus Guard 25205 | -5/Cetus | Spotted Cetus Guard 25210 | -5/Cetus | Allies destroyed Cetus Guard 25212 | -5/Cetus | Allies destroyed Cetus Guard 25215 | -5/Cetus | Allies destroyed Cetus Guard 25343 | -5/Cetus | Started Cetus Manufacturing Module 25368 | -5/Cetus | Manufactured an Enhanced Grunt 25393 | -5/Cetus | Manufactured an Enhanced Grunt 25418 | -5/Cetus | Manufactured an Enhanced Grunt 25443 | -5/Cetus | Manufactured an Enhanced Grunt 25447 | -5/Cetus | Destroyed A7 25452 | -5/Cetus | Extracted ID and sensor layout for unrecognized location from A7's data core 25459 | -5/Cetus | Found Prototype Protection 25459 | -5/Cetus | Identified Med. Regenerative Plating 25468 | -5/Cetus | Manufactured an Enhanced Grunt 25554 | -5/Cetus | Discovered new exit (range 16) 25599 | -5/Cetus | Spotted Cetus Guard 25599 | -5/Cetus | Spotted Cetus Guard 25602 | -5/Cetus | Spotted Cetus Guard 25607 | -5/Cetus | Allies destroyed Cetus Guard 25607 | -5/Cetus | Spotted Cetus Guard 25612 | -5/Cetus | Allies destroyed Cetus Guard 25618 | -5/Cetus | Allies destroyed Cetus Guard 25619 | -5/Cetus | Allies destroyed Cetus Guard 25639 | -5/Cetus | Discovered new exit (range 15) 25652 | -5/Cetus | Met Revision 17 25753 | -5/Cetus | Entered Archives 25753 | -5/Archives | Accompanied by 5 allies 25754 | -5/Archives | Loaded intel: 8 machine locations 25853 | -5/Archives | Discovered new exit (range 16) 25896 | -5/Archives | Discovered new exit (range 15) 26138 | -5/Archives | Identified exit to Hub_04(d) 26143 | -5/Archives | Entered Hub_04(d) 26143 | -5/Hub_04(d) | Accompanied by 2 allies 26144 | -5/Hub_04(d) | Loaded intel: 112 machine locations 26366 | -5/Hub_04(d) | Discovered new exit (range 8) 26403 | -5/Hub_04(d) | Identified exit to Factory 26490 | -5/Hub_04(d) | Spotted B-75 Beast 26494 | -5/Hub_04(d) | Allies destroyed B-75 Beast 27020 | -5/Hub_04(d) | Network Hub disabled 27030 | -5/Hub_04(d) | Spotted Lightning 27032 | -5/Hub_04(d) | Spotted Lightning 27033 | -5/Hub_04(d) | Spotted Lightning 27036 | -5/Hub_04(d) | Spotted Lightning 27040 | -5/Hub_04(d) | Entered Factory 27040 | -4/Factory | Evolved 2 slots: Utility x2 27041 | -4/Factory | Loaded intel: 229 machine locations 27424 | -4/Factory | Repaired Cargo Storage Unit 27631 | -4/Factory | Repaired Centrium Heavy Treads 27688 | -4/Factory | Repaired Adv. Cooling System 27746 | -4/Factory | Repaired Adv. Cooling System 27808 | -4/Factory | Repaired Imp. Powered Armor 28066 | -4/Factory | Discovered new exit (range 13) 28081 | -4/Factory | Lost 5 parts (2p1n2w) 28102 | -4/Factory | Destroyed 11 combat bots 28320 | -4/Factory | Entered Armory 28320 | -4/Armory | Accompanied by 1 ally 28321 | -4/Armory | Loaded intel: 77 machine locations 28576 | -4/Armory | Found Imp. Powered Armor 28579 | -4/Armory | Found Imp. Powered Armor 28582 | -4/Armory | Found Imp. Powered Armor 28635 | -4/Armory | Build established: Scavenger-Mutant 28986 | -4/Armory | Destroyed 9 combat bots 29023 | -4/Armory | System corruption reached 10% 29042 | -4/Armory | Core integrity fell below 50% 29053 | -4/Armory | Destroyed 9 combat bots 29092 | -4/Armory | Lost 26 parts (4p5n9u8w) 29225 | -4/Armory | Lost 5 parts (1n2u2w) 29370 | -4/Armory | Lost 3 parts (1p1n1u) 29517 | -4/Armory | Build established: Scavenger-Gunner 29648 | -4/Armory | Fabricated G-50 Soldier? 29720 | -4/Armory | Found Unknown Device 29721 | -4/Armory | Identified Adv. Force Booster 30029 | -4/Armory | Intercept squad dispatched 30033 | -4/Armory | Spotted Tracker 30041 | -4/Armory | Destroyed Tracker 30055 | -4/Armory | Spotted Combat Programmer 30062 | -4/Armory | Destroyed Combat Programmer 30321 | -4/Armory | Lost 3 parts (1p2n) 30513 | -4/Armory | Discovered new exit (range 3) 30561 | -4/Armory | Entered Lab 30561 | -4/Lab | Accompanied by 7 allies 30565 | -4/Lab | Discovered new exit (range 9) 30592 | -4/Lab | Hidden lab's door opened automatically 30592 | -4/Lab | Sensor layout match revealed 30593 | -4/Lab | Gained access to the hidden lab's interior 30601 | -4/Lab | Detected by scanners 30607 | -4/Lab | Confronted by A5 30646 | -4/Lab | System corruption reached 30% 30656 | -4/Lab | Destroyed A5 30681 | -4/Lab | Found Med. Regenerative Plating 30695 | -4/Lab | Found Exp. Hacking Suite 30726 | -4/Lab | Found Alien Artifact 30744 | -4/Lab | Found Alien Artifact 30762 | -4/Lab | Found Alien Artifact 30762 | -4/Lab | Identified Integrated Reactor 30762 | -4/Lab | Installed Integrated Reactor, increased core energy generation (+10) 30782 | -4/Lab | Found Alien Artifact 30782 | -4/Lab | Identified Core Expander 30782 | -4/Lab | Installed Core Expander, added new Propulsion slot 30828 | -4/Lab | Found Prototype Hackware 30828 | -4/Lab | Identified Quantum Router 30839 | -4/Lab | Found Prototype Protection 30839 | -4/Lab | Identified Exp. Powered Armor 30846 | -4/Lab | Found Prototype Energy Cannon 30846 | -4/Lab | Identified Warp Cannon 30853 | -4/Lab | Found Prototype Energy Gun 30853 | -4/Lab | Identified Hyp. EM Gauss Rifle 30899 | -4/Lab | Found Prototype Special Weapon 31031 | -4/Lab | Decrypted terminal 31228 | -4/Lab | Entered Research 31228 | -3/Research | Evolved 2 slots: Propulsion x1, Utility x1 31229 | -3/Research | Loaded intel: 99 machine locations 31428 | -3/Research | Revision forces began assault on 0b10 31492 | -3/Research | Fabricated Adv. Transmission Jammer (x1) 31598 | -3/Research | Spotted B-86 Titan 31605 | -3/Research | Met up with Revision 17++ 31672 | -3/Research | Repaired Cargo Storage Unit 31915 | -3/Research | Intercept squad dispatched 31919 | -3/Research | Spotted Tracker 31921 | -3/Research | Spotted Tracker 31928 | -3/Research | Research terminal network offline 31931 | -3/Research | Destroyed Tracker 31935 | -3/Research | Destroyed Tracker 31946 | -3/Research | Found Exp. Targeting Computer 32180 | -3/Research | Discovered new exit (range 10) 32200 | -3/Research | Entered Quarantine 32200 | -3/Quarantine | Accompanied by 1 ally 32201 | -3/Quarantine | Loaded intel: 58 machine locations 32247 | -3/Quarantine | Found Unknown Device 32314 | -3/Quarantine | Found Gamma Bomb Array 32462 | -3/Quarantine | Cryocooling Duct disabled 32477 | -3/Quarantine | Ambient heat levels rising (+20) 32477 | -3/Quarantine | Non-combat units ordered to evacuate 32645 | -3/Quarantine | Repaired Exp. Heat Sink 32788 | -3/Quarantine | Destroyed 8 combat bots 32980 | -3/Quarantine | System corruption reached 10% 33088 | -3/Quarantine | Found Alien Artifact 33171 | -3/Quarantine | Intercept squad dispatched 33175 | -3/Quarantine | Spotted Tracker 33176 | -3/Quarantine | Spotted Tracker 33186 | -3/Quarantine | Spotted Combat Programmer 33188 | -3/Quarantine | Spotted Combat Programmer 33188 | -3/Quarantine | Destroyed Tracker 33201 | -3/Quarantine | Destroyed Combat Programmer 33208 | -3/Quarantine | Destroyed Tracker 33219 | -3/Quarantine | Destroyed Combat Programmer 33237 | -3/Quarantine | Lost 3 parts (1p1u1w) 33248 | -3/Quarantine | Found Exp. Targeting Computer 33336 | -3/Quarantine | Identified Gui. Remote Datajack 33342 | -3/Quarantine | Spotted Fortress 33373 | -3/Quarantine | Destroyed Fortress 33398 | -3/Quarantine | Found Prototype Reactor 33398 | -3/Quarantine | Identified Vortex Chain Reactor 33415 | -3/Quarantine | Found Vortex Chain Reactor 33428 | -3/Quarantine | Found Centrium Heavy Armor Plating 33544 | -3/Quarantine | Discovered new exit (range 5) 33700 | -3/Quarantine | Entered Section 7 33701 | -3/Section 7 | Loaded intel: 139 machine locations 33757 | -3/Section 7 | Spotted S7 Guard 33775 | -3/Section 7 | Destroyed S7 Guard 33789 | -3/Section 7 | Found Prototype Protection 33789 | -3/Section 7 | Identified Hvy. Regenerative Plating 33809 | -3/Section 7 | Found Alien Artifact 33926 | -3/Section 7 | Identified Core Regenerator 33926 | -3/Section 7 | Identified Core Reset Matrix 33926 | -3/Section 7 | Identified Subatomic Replicator 33926 | -3/Section 7 | Identified Transdimensional Reconstructor 34030 | -3/Section 7 | Discovered new exit (range 20) 34053 | -3/Section 7 | Found Alien Artifact 34054 | -3/Section 7 | Identified Integrated Mediator 34054 | -3/Section 7 | Installed Integrated Mediator, increased core attachment efficiency. 34058 | -3/Section 7 | Scanned by Researcher 34087 | -3/Section 7 | Spotted S7 Guard 34106 | -3/Section 7 | Destroyed S7 Guard 34136 | -3/Section 7 | Found Alien Artifact 34171 | -3/Section 7 | Identified Core Membrane 34171 | -3/Section 7 | Installed Core Membrane, gained immunity to corruption 34200 | -3/Section 7 | First assault squad dispatched 34416 | -3/Section 7 | Found Alien Artifact 34450 | -3/Section 7 | Found Alien Artifact 34837 | -3/Section 7 | Identified Spacefold Activator 34837 | -3/Section 7 | Identified Microwarp Drive 34961 | -3/Section 7 | Warped through subspace 34967 | -3/Section 7 | Spotted S7 Guard 34986 | -3/Section 7 | Destroyed S7 Guard 34999 | -3/Section 7 | Found Alien Artifact 35009 | -3/Section 7 | Spotted B-86 Titan 35012 | -3/Section 7 | Spotted Executioner 35012 | -3/Section 7 | Spotted Executioner 35020 | -3/Section 7 | Spotted B-99 Colossus 35081 | -3/Section 7 | Found Alien Artifact 35081 | -3/Section 7 | Identified LRC Energy Well 35081 | -3/Section 7 | Installed LRC Energy Well, increased energy storage capacity (+250) 35142 | -3/Section 7 | Spotted Alpha 7 35150 | -3/Section 7 | Destroyed Alpha 7 35247 | -3/Section 7 | Core integrity fell below 50% 35318 | -3/Section 7 | Spotted Striker 35318 | -3/Section 7 | Spotted Striker 35322 | -3/Section 7 | Destroyed Striker 35332 | -3/Section 7 | Destroyed Striker 35333 | -3/Section 7 | Spotted Striker 35341 | -3/Section 7 | Destroyed Striker 35342 | -3/Section 7 | Spotted Striker 35351 | -3/Section 7 | Destroyed Striker 35380 | -3/Section 7 | Destroyed 7 combat bots 35405 | -3/Section 7 | Found Alien Energy Gun 35408 | -3/Section 7 | Found Alien Energy Gun 35422 | -3/Section 7 | Intercept squad dispatched 35444 | -3/Section 7 | Spotted Tracker 35444 | -3/Section 7 | Spotted Tracker 35448 | -3/Section 7 | Destroyed Tracker 35461 | -3/Section 7 | Destroyed Tracker 35491 | -3/Section 7 | Spotted Combat Programmer 35498 | -3/Section 7 | Destroyed Combat Programmer 35515 | -3/Section 7 | Spotted Combat Programmer 35547 | -3/Section 7 | Destroyed Combat Programmer 35563 | -3/Section 7 | Used Core Regenerator, restored core integrity (+325) 35565 | -3/Section 7 | Found Prototype Device 35629 | -3/Section 7 | High security lockdown imminent 35686 | -3/Section 7 | Destroyed 7 combat bots 35709 | -3/Section 7 | High security lockdown engaged 35721 | -3/Section 7 | Found Transdimensional Reconstructor 35724 | -3/Section 7 | Found Transdimensional Reconstructor 35752 | -3/Section 7 | Spotted Striker 35757 | -3/Section 7 | Entered Research 35757 | -2/Research | Evolved 2 slots: Utility x2 35758 | -2/Research | Loaded intel: 102 machine locations 35762 | -2/Research | Identified Quantum Capacitor 35797 | -2/Research | Identified exit to Testing 36044 | -2/Research | First assault squad dispatched 36052 | -2/Research | Build established: Scavenger-Mutant 36254 | -2/Research | Destroyed 9 combat bots 36275 | -2/Research | Entered Testing 36276 | -2/Testing | Loaded intel: 88 machine locations 36345 | -2/Testing | Unstable Terrabomb Derivative detonated 36630 | -2/Testing | Found Prototype Ballistic Cannon 36630 | -2/Testing | Identified Perforator 36665 | -2/Testing | Found Prototype Energy Gun 36665 | -2/Testing | Identified Warp Gun 36712 | -2/Testing | Found Prototype Energy Cannon 36712 | -2/Testing | Identified Cld. Nova Cannon 36745 | -2/Testing | Identified Core Physics Calibrator 36745 | -2/Testing | Identified Sigix Sheargun (x2) 36801 | -2/Testing | First assault squad dispatched 36890 | -2/Testing | Intercept squad dispatched 36896 | -2/Testing | Spotted Tracker 36896 | -2/Testing | Spotted Tracker 36901 | -2/Testing | Identified Exp. Phase Shifter 36905 | -2/Testing | Destroyed Tracker 36907 | -2/Testing | Spotted Combat Programmer 36909 | -2/Testing | Spotted Combat Programmer 36917 | -2/Testing | Destroyed Combat Programmer 36947 | -2/Testing | Destroyed Tracker 36961 | -2/Testing | Found Corrupted Exp. Targeting Computer 36964 | -2/Testing | Found Exp. Targeting Computer 36973 | -2/Testing | Found Exp. Phase Shifter 37080 | -2/Testing | Discovered new exit (range 11) 37087 | -2/Testing | Garrison activated, responded to threat 37090 | -2/Testing | Identified exit to Garrison 37134 | -2/Testing | Destroyed Combat Programmer 37159 | -2/Testing | Destroyed 8 combat bots 37251 | -2/Testing | Used Subatomic Replicator to replicate Prototype Leg 37253 | -2/Testing | Found Prototype Leg 37253 | -2/Testing | Identified Myomer Exoskeleton 37275 | -2/Testing | Warped through subspace 37301 | -2/Testing | Warped through subspace 37357 | -2/Testing | Entered Access 37357 | -1/Access | Evolved 2 slots: Power x1, Utility x1 37358 | -1/Access | Loaded intel: 112 machine locations 37589 | -1/Access | Found Enh. Gamma Bomb Array 37824 | -1/Access | Discovered new exit (range 7) 37857 | -1/Access | First assault squad dispatched 37902 | -1/Access | Intercept squad dispatched 37910 | -1/Access | Entered Command 37911 | -1/Command | Loaded intel: 64 machine locations 38160 | -1/Command | First assault squad dispatched 38317 | -1/Command | Spotted M Guard 38317 | -1/Command | Spotted M Guard 38317 | -1/Command | Spotted Combat Programmer 38333 | -1/Command | Spotted Combat Programmer 38343 | -1/Command | Destroyed Combat Programmer 38352 | -1/Command | Destroyed Combat Programmer 38409 | -1/Command | Destroyed M Guard 38410 | -1/Command | Destroyed M Guard 38410 | -1/Command | All MAIN.C guards destroyed 38599 | -1/Command | Met MAIN.C 38606 | -1/Command | 0b10 Conduit disabled 38721 | -1/Command | Spotted B-99 Colossus 38722 | -1/Command | MAIN.C activated Command garrisons 38725 | -1/Command | Core integrity fell below 50% 38739 | -1/Command | Found Prototype Ballistic Gun 38739 | -1/Command | Identified Hyp. Multirail 38744 | -1/Command | Found Zero-point Reactor 38746 | -1/Command | Found Vortex Chain Reactor 38748 | -1/Command | Found Exp. ECM Suite 38752 | -1/Command | Found Prototype Device 38752 | -1/Command | Identified Exp. System Purifier 38755 | -1/Command | Found Exp. Core Analyzer 38763 | -1/Command | Lost 11 parts (1p1n7u2w) 38835 | -1/Command | Core integrity fell below 20% 38835 | -1/Command | Discovered new exit (range 2) 38843 | *** | Escaped! Last Messages --------------- 38822_ B-74 Champion unfolds itself. 38822_ G-73 Enforcer unfolds itself. 38822_ Spacefolded through Wall. 38823_ C-30 ARC bursts open, deploying its payload. 38823_ S-43 Plague unfolds itself. 38823_ Microwarped (distance 5). 38825_ C-30 ARC bursts open, deploying its payload. 38825_ P-80 Master unfolds itself. 38826_ Microwarped (distance 5). 38827_ Microwarped (distance 3). 38828_ Core Membrane filtered system corruption (1). 38831_ P-80 Master resets S-43 Plague, system corruption cleaned. 38833_ Core Membrane filtered system corruption (1). 38834_ Microwarped (distance 3). 38835_ EXIT=FOUND 38835_ Spacefolded through Reinforced Barrier. 38835_ Core Membrane filtered system corruption (1). 38836_ Microwarped (distance 3). 38840_ P-80 Master destroyed. 38840_ Terminal disabled. Map ----- +----------------------------------------------------+ | ???????????????????????????????????????""????????? | | ???????????????????????????????????????"""???????? | | ????????????????????????????????????????T"???????? | | ???????????????????????????????????????"""???????? | | ?????????????????????????""????????????""????????? | | ????????????????????????""""?????????????????????? | | ????????????????????????""""?????????????????????? | | ?????????????????????????""??????????????????????? | | ?????????????????????????????????????????????????? | | ?????????????????????????????????????????????????? | | ?????????????????????????????????????????????????? | | ?????????????????????????????????????????????????? | | ?????????????????????##?##???????????????????????? | | ?????????????????????# ???????????????????????? | | ????????????????"""??? "" ???????????????????????? | | ????????????????"""??? T ??????? ?????????????? | | ?????????????????R"??? ?????# ?????????????? | | ????????????????"""???# #?????# ?????????????? | | ????????????????""????# #?????# ?????????????? | | ??????????????????????# #?????# = #????????????? | | ??????????????????????# #?????# %* #????????????? | | ??????????????????????# #?????# #???????"""""" | | ??????????????????????# !#?????# #???????""???? | | ??????????????????????#!%###???# #???????"""""? | | ????????????????????### = #???# #???????"""""" | | ????????????????????# # @ #?### #???????"???"? | | ?????????????????### ## #?# #???????"" "" | | ??????????########""#?######?# #???????"" "" | | ??????????# "#????????# #??????# " "" | | ??????????# ########### #??????# " | | ??????????# # #??????# " | | ???#??????# # #??????#"""""" | | ???# ????# ! ! / % ####??????#"" | | ???# ??#" # =! ###???????# | | ???# #%" # =! # #??????# | | ???# * "+% # ! # ######## | | ?????###### " =! | | ??????????########## ! | | ???????????????????# | | ???????????????????# ###### ##### " | | ???????????????????###/##????# #???# " " | | ????????????????????? ?????# #???# " | | """""???????????????? ????# ##??####### | | ??"""??????????????? ???# "#????????? | | ??"""????????????????"" ??# "#????????? | | ??"""???????????????"""" #?# "#????????? | | """""???????????????"""" #?# T#????????? | | ?????????????????????""? #?# "#????????? | | ????????????????????????? #?# ===% "#????????? | | ????????????????????????? #?# ==! "#????????? | +----------------------------------------------------+ Best States ------------- Heat Dissipation 188 Coolant Potential 100 Energy Generation 93 Energy Capacity 1790 Matter Stores 300 Matter Capacity 300 Sight Range 16 Terrain Scan Density 10 ECM Strength 3 Jamming Range 16 Power Amplification 30 Additional Mass Support 25 Armor Coverage 1250 Resistance: TH 20 Weapon Cycling 20 Phase Shifting 20 Evasion (%) 75 Targeting Accuracy 24 Target Analysis 8 Core Analysis 11 Recoil Reduction 6 Particle Charging 25 Offensive Hacking 26 Defensive Hacking 25 Relay Coupler Types 1 Relay Coupler Value 33 Authchip Count 7 Item Schematics ----------------- Exp. Sensor Array | -9/Materials | Scanalyzed Hvy. Battle Rifle | -7/Zion | Free Matter Neutralizer | -6/Factory | Hacked Combat Drone Bay | -6/Data Miner | Free Lgt. Regenerative Plating | -6/Data Miner | Free Enh. Armored Leg | -6/Data Miner | Free Prc. Energy Filter | -6/Data Miner | Free Imp. KE Penetrator | -6/Data Miner | Free Imp. Gyrokinetic Inverter | -6/Data Miner | Free Imp. Remote Shield | -6/Data Miner | Free Hvy. Gauss Cannon | -6/Data Miner | Free Adv. Transmission Jammer | -6/Data Miner | Free Imp. Antigrav System | -6/Data Miner | Free Adv. Remote Datajack | -6/Data Miner | Free Thermal Defense Suite | -3/Section 7 | Archive Cld. Gravmag System | -3/Section 7 | Archive Exp. Power Shielding | -3/Section 7 | Archive Cld. Impulse Thruster | -3/Section 7 | Archive Centrium Heavy Treads | -2/Testing | Archive Exp. Cesium-ion Thruster | -2/Testing | Archive Robot Schematics ------------------ G-47 Trooper | -7/Factory | Hacked A-15 Conveyor | -6/Data Miner | Free R-10 Processor | -6/Data Miner | Free S-27 Virus | -6/Data Miner | Free M-30 Cleanser | -6/Data Miner | Free B-60 Warrior | -6/Data Miner | Free A-27 Freighter | -6/Data Miner | Free G-50 Soldier | -5/Extension | Hacked T-07 Excavator | -3/Section 7 | Archive Fabricated ------------ G-47 Trooper | x3 | -7/Factory | Authchip G-47 Trooper | x3 | -7/Factory | Authchip G-47 Trooper | x3 | -7/Factory | Authchip G-50 Soldier | x3 | -6/Factory | Preloaded G-47 Trooper | x3 | -6/Factory | Authchip G-47 Trooper | x3 | -6/Factory | Authchip G-50 Soldier | x3 | -4/Armory | Authchip Adv. Transmission Jammer | x1 | -3/Research Alien Tech Used ----------------- Integrated Reactor Core Expander Integrated Mediator Core Membrane Transdimensional Reconstructor Microwarp Drive LRC Energy Well Core Regenerator Spacefold Activator Subatomic Replicator Sigix Sheargun Achievements -------------- None Challenges ------------ None Game ------ Seed ClaymoresCouplerScythe Manual? 0 Play Time 04:52:33 Cumulative 1550.2 hours Start 2022.07.12 @ 21:54:49 End 2022.07.13 @ 18:04:08 Sessions 3 Manual Loads 0 Difficulty Rogue Special Mode None Game No. 543 Rogue 543 Adventurer 0 Explorer 0 Win Type 0 Total 110 Types 24/12/45/6/1/2/18/1/1 Lore% 97 Gallery% 97 Achievement% 86 Wizard Run 0 Options --------- ASCII 0 Keyboard 0 Movement Numpad Keybinds 0 Fullscreen 1 Font 18/SmallcapsGlow Map View 76x50 Tactical HUD 1 Map Filters NONE Filters NONE Steam 1 RUN: 53c9ad63-35b0-4f1d-837b-2912941ac91f